Workbook

Sheet Input for Auto Config
A1: International Responder 5000 2019 Estimate Sheet v 1.50
B2: Input Config Information | D2: Date: | F2: 2022-12-26
D3: Job Name: | F3: HOSPITAL SAN JAVIER
B4: System Config/Intergrations/Software | D4: Distributor Name: | F4: CENCOMEX S.A.
B5: SIP Telephony Integration (yes or no) | C5: Yes | D5: Salesperson: | F5: CRISTIAN YAÑEZ
B6: Audio Paging to R5K stations in rooms? (yes or no) | C6: Yes
B7: Display and Reporting Software (yes or no) | C7: Yes
B8: ADT Integration - Display and Reporting software necessary (yes or no) | C8: Yes
B9: R5K Messaging App (yes or no)
B10: Number of concurrent users of messaging app
B11: Middleware Interface (Including SIP Cancel) (yes or no) | C11: Yes
B12: Resident Safety Interface (yes or no) | C12: Yes
B15: Typical Patient Room Stations/Corridor Lights (Drop Down) | C15: Part Number | D15: Quantity | F15: Typical Patient Room Accessories (Drop Down) | G15: Part Number | H15: Quantity
B16: R5KCL546 - 5-Bulb, 4-Point Audio Corridor Light | C16: =IF(B16<>"", VLOOKUP(B16, DropDowns!A$1:B$76, 2, FALSE), "") -> R5KCL546 | D16: 12 | F16: CCDIN - Call Cord - Single w/ Clip (10 ft.) | G16: =IF(F16<>"", VLOOKUP(F16,DropDowns!A$75:B$91, 2, FALSE), "") -> CCDIN | H16: 41
B17: R5KDC06 - 6-Point Visual Domeless Controller | C17: =IF(B17<>"", VLOOKUP(B17, DropDowns!A$1:B$76, 2, FALSE), "") -> R5KDC06 | D17: 4 | G17: =IF(F17<>"", VLOOKUP(F17,DropDowns!A$75:B$91, 2, FALSE), "") -> 
B18: R4KSAR - SLIM Dual Button St | C18: =IF(B18<>"", VLOOKUP(B18, DropDowns!A$1:B$76, 2, FALSE), "") -> R4KSAR | D18: 12 | G18: =IF(F18<>"", VLOOKUP(F18,DropDowns!A$75:B$91, 2, FALSE), "") -> 
B19: R5KPS1A - Single Audio Patient Station | C19: =IF(B19<>"", VLOOKUP(B19, DropDowns!A$1:B$76, 2, FALSE), "") -> R5KPS1A | D19: 41 | G19: =IF(F19<>"", VLOOKUP(F19,DropDowns!A$75:B$91, 2, FALSE), "") -> 
B20: R5KPC11WPS - Waterproof Pullcord Station - Spanish | C20: =IF(B20<>"", VLOOKUP(B20, DropDowns!A$1:B$76, 2, FALSE), "") -> R5KPC11WPS | D20: 18 | G20: =IF(F20<>"", VLOOKUP(F20,DropDowns!A$75:B$91, 2, FALSE), "") -> 
B21: R5KDC46 - 6-Point, 4-Point Audio Domeless Controller | C21: =IF(B21<>"", VLOOKUP(B21, DropDowns!A$1:B$76, 2, FALSE), "") -> R5KDC46 | D21: 1 | G21: =IF(F21<>"", VLOOKUP(F21,DropDowns!A$75:B$91, 2, FALSE), "") -> 
C22: =IF(B22<>"", VLOOKUP(B22, DropDowns!A$1:B$76, 2, FALSE), "") ->  | G22: =IF(F22<>"", VLOOKUP(F22,DropDowns!A$75:B$91, 2, FALSE), "") -> 
C23: =IF(B23<>"", VLOOKUP(B23, DropDowns!A$1:B$76, 2, FALSE), "") ->  | G23: =IF(F23<>"", VLOOKUP(F23,DropDowns!A$75:B$91, 2, FALSE), "") -> 
C24: =IF(B24<>"", VLOOKUP(B24, DropDowns!A$1:B$76, 2, FALSE), "") ->  | G24: =IF(F24<>"", VLOOKUP(F24,DropDowns!A$75:B$91, 2, FALSE), "") -> 
C25: =IF(B25<>"", VLOOKUP(B25, DropDowns!A$1:B$76, 2, FALSE), "") ->  | G25: =IF(F25<>"", VLOOKUP(F25,DropDowns!A$75:B$91, 2, FALSE), "") -> 
C26: =IF(B26<>"", VLOOKUP(B26, DropDowns!A$1:B$76, 2, FALSE), "") ->  | G26: =IF(F26<>"", VLOOKUP(F26,DropDowns!A$75:B$91, 2, FALSE), "") -> 
C27: =IF(B27<>"", VLOOKUP(B27, DropDowns!A$1:B$76, 2, FALSE), "") ->  | G27: =IF(F27<>"", VLOOKUP(F27,DropDowns!A$75:B$91, 2, FALSE), "") -> 
C28: =IF(B28<>"", VLOOKUP(B28, DropDowns!A$1:B$76, 2, FALSE), "") ->  | G28: =IF(F28<>"", VLOOKUP(F28,DropDowns!A$75:B$91, 2, FALSE), "") -> 
C29: =IF(B29<>"", VLOOKUP(B29, DropDowns!A$1:B$76, 2, FALSE), "") ->  | G29: =IF(F29<>"", VLOOKUP(F29,DropDowns!A$75:B$91, 2, FALSE), "") -> 
A31: Instructions:
A33: 1. Make your System/Integration/Software Choices by choosing Yes or No under System Conf/Integrations/Software boxes above.
A34: 2. In the Typical Patient Room section, if you have a large number of rooms that have the same exact stations in them, choose each of those items from the Yellow drop-down box and then enter the number of rooms that have this station in the count box. By choosing the station type and entering in a quantity, this will automatically update the Quote Detail tab.
A35: 3. For all other rooms or stations, enter/edit the Quantities of each station/device individually in the next sheet, Quote Detail.
A36: 4. Based on what you enter in this sheet, the next sheet will auto update.
A37: 5. However, use the Column labeled, Enter Qty +/- to add or substract items based on your specific needs. For example, if the Auto Update selects 5 Power Supplies, but you only want 4 in the quote, enter "-1" for that item.

Sheet Labor_Installation
A1: Cost Summary
A2: Hours | B2: Rate | H2: Selling Price Summary
I3: Cost | J3: Mark-up | K3: Selling Price | M3: Profit
C4: Total Cable Selling Cost --> | E4: ='R5K Details'!M181 -> 400 | H4: Equipment | I4: =order_hack!G211 -> 7676 | J4: 1.7 | K4: =I4*J4 -> 13049.2 | M4: =K4-I4 -> 5373.2
A5: Total Labor Costs | H5: Training | I5: 0 | J5: 1.7 | K5: =I5*J5 -> 0 | M5: =K5-I5 -> 0
A6: 0 | B6: 0 | C6: Demolition Labor | E6: =B6*A6 -> 0 | H6: Cable | I6: =E4 -> 400 | J6: 1.7 | K6: =I6*J6 -> 680 | M6: =K6-I6 -> 280
A7: =order_hack!D209 -> 0 | B7: 0 | C7: Est. Shop Labor | E7: 0 | H7: Labor | I7: =E21 -> 0 | J7: 1.5 | K7: =I7*J7 -> 0 | M7: =K7-I7 -> 0
A8: ='R5K Details'!O181 -> 64 | B8: 0 | C8: Est. Cable Labor | E8: 0 | H8: Miscellaneous | I8: =E39 -> 0 | J8: 1.7 | K8: =I8*J8 -> 0 | M8: =K8-I8 -> 0
A9: =order_hack!F209 -> 61.2 | B9: 0 | C9: Est. Field Labor | E9: 0 | H9: Total --> | I9: =SUM(I4:I8) -> 8076 | K9: =SUM(K4:K8) -> 13729.2
A10: 0 | B10: 0 | C10: Engineering (7% of Dist Net hardware and Field Labor) | E10: 0 | L10: Gross Profit --> | M10: =SUM(M4:M8) -> 5653.2
A11: 0 | B11: 0 | C11: Warranty | E11: 0 | L11: Distributor Allowance --> | M11: 0
A12: 0 | B12: 0 | C12: Coordination | E12: =A12*B12 -> 0 | L12: Net Profit --> | M12: =M10-M11 -> 5653.2
A13: 0 | B13: 0 | C13: In-Service/Needs Assessment (beyond CAS) | E13: 0
A14: 0 | B14: 0 | C14: Testing / Troubleshooting / Inspection | E14: 0 | L14: Profitability --> | M14: =IF((K9<>0),(M12/K9),0) -> 0.4117647059
A15: 0 | B15: 0 | C15: Project Management | E15: 0 | J15: Total Selling Price --> | K15: =K9 -> 13729.2
A16: 0 | B16: 0 | C16: CAD Drawings | E16: 0
A17: 0 | B17: 0 | C17: Enter your own items | E17: 0 | J17: Sales Tax --> | K17: 0
A18: 0 | B18: 0 | C18: Enter your own items | E18: 0
A19: 0 | B19: 0 | C19: Enter your own items | E19: 0
A20: =SUM(A6:A19) -> 125.2 | B20: <-- Total Labor Hours
C21: Total Labor Cost --> | E21: =SUM(E6:E19) -> 0
A22: Total Miscellaneous Costs
A23: 0 | B23: 0 | C23: Lost Time | E23: =A23*B23 -> 0
A24: 0 | B24: 0 | C24: Travel | E24: 0
A25: 0 | B25: 0 | C25: Freight | E25: 0
A26: 0 | B26: 0 | C26: Bond | E26: 0
A27: 0 | B27: 0 | C27: Parking | E27: 0
A28: 0 | B28: 0 | C28: PerDiem | E28: 0
A29: 0 | B29: 0 | C29: Subcontractors | E29: 0
A30: 0 | B30: 0 | C30: Infection Control Hardware | E30: 0
A31: 0 | B31: 0 | C31: Infection Control Labor | E31: 0
A32: 0 | B32: 0 | C32: Overtime | E32: 0
A33: 0 | B33: 0 | C33: After Hours | E33: 0
A34: 0 | B34: 0 | C34: Enter your own items | E34: 0
A35: 0 | B35: 0 | C35: Enter your own items | E35: 0
A36: 0 | B36: 0 | C36: Enter your own items | E36: 0
A37: 0 | B37: 0 | C37: Enter your own items | E37: 0
A38: =SUM(A23:A37) -> 0 | B38: <-- Total Misc. Hours
C39: Total Misc. Installation Cost --> | E39: =SUM(E23:E38) -> 0

Sheet R5K Details
A2: ='Input for Auto Config'!A1:K1 -> International Responder 5000 2019 Estimate Sheet v 1.50 | M2: Job Name: | N2: ='Input for Auto Config'!F3 -> HOSPITAL SAN JAVIER
A3: Responder 5000 System | M3: Distributor Name: | N3: ='Input for Auto Config'!F4 -> CENCOMEX S.A.
C4: Date: | E4: ='Input for Auto Config'!F2 -> 2022-12-26 | M4: Salesperson: | N4: ='Input for Auto Config'!F5 -> CRISTIAN YAÑEZ
A5: MANUF. | B5: Part # | C5: Con- 8 | D5: Con- 6 | E5: Description (Items in Purple Automatically Add Quantities in Yellow Column after Completing the Input for Auto Config Tab) | F5: Con- 8 | G5: Con- 6 | H5: Auto | I5: Add or Decrease Quantity after Completing Auto Config (See Input for Auto Config Tab) | J5: Qty | K5: List Price | L5: Current (Amps) | M5: Total Current | N5: Shop Hours | O5: Shop Total | P5: Field Hours | Q5: Field Total | R5: Notes
A6: Headend
A7: RAULAND | B7: NC2828 | E7: Head-End Equipment Cabinet | J7: =H7+I7 -> 0 | K7: =VLOOKUP(B7,'2019'!C$3:H$220,5,FALSE) -> 1680 | O7: =IF(H7*N7=0," ",H7*N7) ->  | P7: 2 | Q7: =IF(H7*P7=0," ",H7*P7) -> 
A8: " | B8: 351102 | E8: Wall Mounting Cabinet-head-end | J8: 0 | K8: =VLOOKUP(B8,'2019'!C$3:H$220,5,FALSE) -> 1145
A9: " | B9: R5KMPR15 | E9: Power Supply 15V for Stations, CLs, DCs (w/battery backup) | H9: 1 | J9: 1 | K9: =VLOOKUP(B9,'2019'!C$3:H$220,5,FALSE) -> 933 | O9: =IF(H9*N9=0," ",H9*N9) ->  | P9: 1 | Q9: =IF(H9*P9=0," ",H9*P9) -> 1
A10: " | B10: R5KMPR36 | E10: Power Supply 36V for MSC, Console (w/battery backup) | H10: 1 | J10: =H10+I10 -> 1 | K10: =VLOOKUP(B10,'2019'!C$3:H$220,5,FALSE) -> 900 | O10: =IF(H10*N10=0," ",H10*N10) ->  | P10: 0.5 | Q10: =IF(H10*P10=0," ",H10*P10) -> 0.5
A11: " | B11: R5KMSC | E11: Main System Controller | H11: 1 | J11: =H11+I11 -> 1 | K11: =VLOOKUP(B11,'2019'!C$3:H$220,5,FALSE) -> 1803 | L11: 2 | M11: =L11*J11 -> 2 | O11: =IF(H11*N11=0," ",H11*N11) ->  | P11: 6 | Q11: =IF(H11*P11=0," ",H11*P11) -> 6
A12: " | B12: 351010 | E12: Responder Network Concentrator | J12: =H12+I12 -> 0 | K12: =VLOOKUP(B12,'2019'!C$3:H$220,5,FALSE) -> 12107.5 | Q12: =IF(H12*P12=0," ",H12*P12) -> 
A13: " | B13: R5KM8PRT | E13: R5K 8-Port Switch | H13: 1 | I13: -1 | J13: =H13+I13 -> 0 | K13: =VLOOKUP(B13,'2019'!C$3:H$220,5,FALSE) -> 1113 | L13: 2.4 | P13: 0.5 | Q13: 0.5
A14: " | B14: 351006 | E14: Fiber Optic Adapter Module | J14: =H14+I14 -> 0 | K14: =VLOOKUP(B14,'2019'!C$3:H$220,5,FALSE) -> 510 | L14: 0.75 | M14: =L14*J14 -> 0 | P14: 2
A15: " | B15: R5KL2KA | E15: Data Converter for K-Bus to L-Net | H15: 1 | J15: 1 | K15: =VLOOKUP(B15,'2019'!C$3:H$220,5,FALSE) -> 543 | L15: 0.13 | M15: =L15*J15 -> 0.13 | P15: 8 | Q15: 8
A16: " | B16: R5KMRPT | E16: Reporting Software License (1 per system) | J16: 0 | K16: =VLOOKUP(B16,'2019'!C$3:H$220,5,FALSE) -> 9000 | O16: =IF(H16*N16=0," ",H16*N16) ->  | P16: 16 | Q16: =IF(H16*P16=0," ",H16*P16) -> 
B17: R5KMADT | E17: ADT Integration Software License (1 per system) | J17: 0 | K17: =VLOOKUP(B17,'2019'!C$3:H$220,5,FALSE) -> 3750 | O17: =IF(H17*N17=0," ",H17*N17) ->  | P17: 16
B18: R5KMRSI | E18: Resident Safety Interface (1 per system) | J18: 0 | K18: =VLOOKUP(B18,'2019'!C$3:H$220,5,FALSE) -> 3000
A19: " | B19: R5KMSIP | E19: SIP Telephony Software License (1 per system) | J19: 0 | K19: =VLOOKUP(B19,'2019'!C$3:H$220,5,FALSE) -> 5175 | P19: 6 | Q19: =IF(H19*P19=0," ",H19*P19) -> 
B20: R5KMMWI | E20: Middleware Interface (1 per system) | J20: 0 | K20: =VLOOKUP(B20,'2019'!C$3:H$220,5,FALSE) -> 5000
A21: " | B21: 355005 | E21: Responder SIP Server | J21: 0 | K21: =VLOOKUP(B21,'2019'!C$3:H$220,5,FALSE) -> 4125 | P21: 6 | Q21: =IF(H21*P21=0," ",H21*P21) -> 
A22: " | B22: R4KPA25 | C22: 2 | E22: Paging Amplifier | F22: =C22*J22 -> 0 | J22: =H22+I22 -> 0 | K22: =VLOOKUP(B22,'2019'!C$3:H$220,5,FALSE) -> 858 | L22: 2.5 | M22: =L22*J22 -> 0 | P22: 4 | Q22: =IF(H22*P22=0," ",H22*P22) -> 
A23: " | B23: R4KMQCV2 | C23: 2 | E23: Marquee Controller | F23: =C23*J23 -> 0 | J23: =I23 -> 0 | K23: =VLOOKUP(B23,'2019'!C$3:H$220,5,FALSE) -> 507 | L23: 0.3 | M23: =L23*J23 -> 0 | P23: 2 | Q23: =IF(J23*P23=0," ",J23*P23) -> 
A24: " | B24: R4KMST | C24: 2 | E24: Marquee Speaker Station | F24: =C24*J24 -> 0 | J24: =I24 -> 0 | K24: =VLOOKUP(B24,'2019'!C$3:H$220,5,FALSE) -> 123 | L24: 0.005 | M24: =L24*J24 -> 0 | P24: 0.35
A25: " | B25: R5KMTRM | C25: 8 | E25: Termination Board | F25: =C25*J25 -> 8 | H25: 1 | J25: =H25+I25 -> 1 | K25: =VLOOKUP(B25,'2019'!C$3:H$220,5,FALSE) -> 183 | P25: 1 | Q25: 1
A26: " | B26: R5KCONS | C26: 1 | E26: VoIP Nurse Console | F26: =C26*J26 -> 1 | H26: 1 | J26: =H26+I26 -> 1 | K26: =VLOOKUP(B26,'2019'!C$3:H$220,5,FALSE) -> 1836 | L26: 0.328 | M26: =L26*J26 -> 0.328 | P26: 2 | Q26: 2
A27: " | B27: R4KTMB | C27: 14 | E27: Termination Board | F27: =C27*J27 -> 0 | H27: 0 | K27: =VLOOKUP(B27,'2019'!C$3:H$220,5,FALSE) ->  | P27: 1
A28: " | B28: R4KANNV2 | C28: 2 | E28: Annunciate Panel (comes with a Receptacle) | F28: 0 | G28: =D28*J28 -> 0 | J28: =I28 -> 0 | K28: =VLOOKUP(B28,'2019'!C$3:H$220,5,FALSE) -> 882 | L28: 0.375 | M28: =L28*J28 -> 0 | P28: 1
A29: " | B29: R4KRECP | C29: 2 | E29: R4K Console Receptacle | F29: 0 | G29: 0 | J29: =I29 -> 0 | K29: =VLOOKUP(B29,'2019'!C$3:H$220,5,FALSE) -> 66 | O29: =IF(J29*N29=0," ",J29*N29) ->  | P29: 0.5
A30: " | B30: R4KWM22 | E30: Wall Mount Kit for Annunciate Panel | J30: =I30+H30 -> 0 | K30: =VLOOKUP(B30,'2019'!C$3:H$220,5,FALSE) -> 243 | O30: =IF(J30*N30=0," ",J30*N30) ->  | P30: 1
A31: " | B31: R4KDM22 | E31: Desk Mount Kit | J31: =I31 -> 0 | K31: =VLOOKUP(B31,'2019'!C$3:H$220,5,FALSE) -> 189 | P31: 1
A32: Stations
A33: RAULAND | B33: R5KPD2EA | C33: 4 | E33: R5K Enhnaced Dual Patient Station | F33: =C33*J33 -> 0 | H33: =SUMIF('Input for Auto Config'!C$16:C$29,B33,'Input for Auto Config'!D$16:D$29) -> 0 | J33: 0 | K33: =VLOOKUP(B33,'2019'!C$3:H$220,5,FALSE) -> 216 | L33: 0.015 | M33: =L33*J33 -> 0 | P33: 0.35 | Q33: =IF(J33*P33=0," ",J33*P33) -> 
A34: " | B34: R5KPS1EA | C34: 2 | E34: R5K Enhanced Single Station | F34: 0 | H34: =SUMIF('Input for Auto Config'!C$16:C$29,B34,'Input for Auto Config'!D$16:D$29) -> 0 | J34: 0 | K34: =VLOOKUP(B34,'2019'!C$3:H$220,5,FALSE) -> 165 | L34: 0.011 | M34: 0 | P34: 0.35
A35: " | B35: R5KPD2A | C35: 4 | E35: R5K Dual Patient Station | F35: 0 | H35: =SUMIF('Input for Auto Config'!C$16:C$29,B35,'Input for Auto Config'!D$16:D$29) -> 0 | J35: 0 | K35: =VLOOKUP(B35,'2019'!C$3:H$220,5,FALSE) -> 177 | L35: 0.01 | M35: 0 | P35: 0.35
A36: " | B36: R5KPS1A | C36: 2 | E36: R5K Single Audio Patient Station | F36: 82 | H36: =SUMIF('Input for Auto Config'!C$16:C$29,B36,'Input for Auto Config'!D$16:D$29) -> 41 | J36: 41 | K36: =VLOOKUP(B36,'2019'!C$3:H$220,5,FALSE) -> 126 | L36: 0.008 | M36: 0.328 | N36: =SUMIF('Input for Auto Config'!C16:C29,B36,'Input for Auto Config'!D16:D29) -> 41 | P36: 0.35 | Q36: 14.35
A37: " | B37: R5KPS1V | C37: 2 | E37: R5K Single Patient Visual Station | F37: 0 | H37: =SUMIF('Input for Auto Config'!C$16:C$29,B37,'Input for Auto Config'!D$16:D$29) -> 0 | J37: 0 | K37: =VLOOKUP(B37,'2019'!C$3:H$220,5,FALSE) -> 105 | L37: 0.003 | M37: 0 | P37: 0.35
A38: " | B38: R5KPS1LCA | C38: 4 | E38: R5K Audio Single Patient Station with Lighting Control | F38: 0 | H38: =SUMIF('Input for Auto Config'!C$16:C$29,B38,'Input for Auto Config'!D$16:D$29) -> 0 | J38: 0 | K38: =VLOOKUP(B38,'2019'!C$3:H$220,5,FALSE) -> 180 | L38: 0.031 | M38: 0 | P38: 0.35
A39: " | B39: R5KSSTF | C39: 2 | E39: R5K Staff Station | F39: 0 | H39: =SUMIF('Input for Auto Config'!C$16:C$29,B39,'Input for Auto Config'!D$16:D$29) -> 0 | J39: 0 | K39: =VLOOKUP(B39,'2019'!C$3:H$220,5,FALSE) -> 111 | L39: 0.016 | M39: 0 | P39: 0.35
A40: " | B40: R5KSDTY | C40: 4 | E40: R5K Duty Station | F40: 0 | H40: =SUMIF('Input for Auto Config'!C$16:C$29,B40,'Input for Auto Config'!D$16:D$29) -> 0 | J40: 0 | K40: =VLOOKUP(B40,'2019'!C$3:H$220,5,FALSE) -> 132 | L40: 0.027 | M40: 0 | P40: 0.35
A41: " | B41: R5KPB4 | C41: 4 | E41: Responder 5K 4-button Station | F41: 0 | H41: =SUMIF('Input for Auto Config'!C$16:C$29,B41,'Input for Auto Config'!D$16:D$29) -> 0 | J41: 0 | K41: =VLOOKUP(B41,'2019'!C$3:H$220,5,FALSE) -> 123 | L41: 0.011 | M41: 0 | O41: =IF(J41*N41=0," ",J41*N41) ->  | P41: 0.35
A42: " | B42: R5KPB4CNF | C42: 4 | E42: Responder 5K 4-button CNF Station | F42: =C42*J42 -> 0 | H42: =SUMIF('Input for Auto Config'!C$16:C$29,B42,'Input for Auto Config'!D$16:D$29) -> 0 | J42: =H42+I42 -> 0 | K42: =VLOOKUP(B42,'2019'!C$3:H$220,5,FALSE) -> 123 | L42: 0.011 | M42: =L42*J42 -> 0 | O42: =IF(J42*N42=0," ",J42*N42) ->  | P42: 0.35 | Q42: =IF(J42*P42=0," ",J42*P42) -> 
A43: " | B43: R5KCANCEL | C43: 4 | E43: Responder 5K Cancel Station | F43: =C43*J43 -> 0 | H43: =SUMIF('Input for Auto Config'!C$16:C$29,B43,'Input for Auto Config'!D$16:D$29) -> 0 | J43: 0 | K43: =VLOOKUP(B43,'2019'!C$3:H$220,5,FALSE) -> 102 | L43: 0.011 | M43: =L43*J43 -> 0 | O43: =IF(J43*N43=0," ",J43*N43) ->  | P43: 0.35 | Q43: =IF(J43*P43=0," ",J43*P43) -> 
A44: " | B44: R5KPC11WP | C44: 2 | E44: Waterproof Pullcord Station | F44: =C44*J44 -> 0 | H44: =SUMIF('Input for Auto Config'!C$16:C$29,B44,'Input for Auto Config'!D$16:D$29) -> 0 | J44: 0 | K44: =VLOOKUP(B44,'2019'!C$3:H$220,5,FALSE) -> 102 | L44: 0.002 | M44: 0 | O44: =IF(J44*N44=0," ",J44*N44) ->  | P44: 0.35
A45: " | B45: R5KPC11WPS | C45: 2 | E45: Waterproof Pullcord Station - Spanish | F45: 36 | H45: =SUMIF('Input for Auto Config'!C$16:C$29,B45,'Input for Auto Config'!D$16:D$29) -> 18 | J45: 18 | K45: =VLOOKUP(B45,'2019'!C$3:H$220,5,FALSE) -> 108 | L45: 0.002 | M45: 0.036
A46: " | B46: R5KPC11WPF | C46: 2 | E46: Waterproof Pullcord Station - French | F46: 0 | H46: =SUMIF('Input for Auto Config'!C$16:C$29,B46,'Input for Auto Config'!D$16:D$29) -> 0 | J46: 0 | K46: =VLOOKUP(B46,'2019'!C$3:H$220,5,FALSE) -> 108 | L46: 0.002 | M46: 0
A47: " | B47: R5KPC11WPP | C47: 2 | E47: Waterproof Pullcord Station - Portuguese | F47: =C47*J47 -> 0 | H47: =SUMIF('Input for Auto Config'!C$16:C$29,B47,'Input for Auto Config'!D$16:D$29) -> 0 | J47: =H47+I47 -> 0 | K47: =VLOOKUP(B47,'2019'!C$3:H$220,5,FALSE) -> 108 | L47: 0.015 | M47: 0 | Q47: =IF(J47*P47=0," ",J47*P47) -> 
A48: " | B48: R4K15V | D48: 4 | E48: SLIM 1/4" Jack / Button St | F48: 0 | G48: =D48*J48 -> 0 | H48: =SUMIF('Input for Auto Config'!C$16:C$29,B48,'Input for Auto Config'!D$16:D$29) -> 0 | J48: 0 | K48: =VLOOKUP(B48,'2019'!C$3:H$220,5,FALSE) -> 123 | L48: 0.007 | M48: =L48*J48 -> 0 | O48: =IF(J48*N48=0," ",J48*N48) ->  | P48: 0.35
A49: " | B49: R4K17V | D49: 2 | E49: SLIM Enh Single Call St | F49: 0 | G49: 0 | H49: =SUMIF('Input for Auto Config'!C$16:C$29,B49,'Input for Auto Config'!D$16:D$29) -> 0 | J49: 0 | K49: =VLOOKUP(B49,'2019'!C$3:H$220,5,FALSE) -> 186 | L49: 0.025 | M49: 0 | P49: 0.35
A50: " | B50: R4K11V | D50: 2 | E50: Single Patient Station - Visual | H50: =SUMIF('Input for Auto Config'!C$16:C$29,B50,'Input for Auto Config'!D$16:D$29) -> 0 | K50: =VLOOKUP(B50,'2019'!C$3:H$220,5,FALSE) ->  | L50: 0.002 | M50: 0 | P50: 0.35
A51: " | B51: R4K12A | C51: 2 | E51: Single Patient Station - Audio | H51: =SUMIF('Input for Auto Config'!C$16:C$29,B51,'Input for Auto Config'!D$16:D$29) -> 0 | K51: =VLOOKUP(B51,'2019'!C$3:H$220,5,FALSE) ->  | L51: 0.005 | M51: 0 | P51: 0.35
A52: " | B52: R4K12AHZ | C52: 2 | E52: Horizontal Single Patient Station - Audio | H52: =SUMIF('Input for Auto Config'!C$16:C$29,B52,'Input for Auto Config'!D$16:D$29) -> 0 | K52: =VLOOKUP(B52,'2019'!C$3:H$220,5,FALSE) ->  | L52: 0.005 | M52: 0 | P52: 0.35
A53: " | B53: R4K13VA | C53: 2 | E53: Enhanced Single Patient Station - Audio | H53: =SUMIF('Input for Auto Config'!C$16:C$29,B53,'Input for Auto Config'!D$16:D$29) -> 0 | K53: =VLOOKUP(B53,'2019'!C$3:H$220,5,FALSE) ->  | L53: 0.025 | M53: 0 | P53: 0.35
A54: " | B54: R4K13VAHZ | C54: 2 | D54: 2 | E54: Horizontal Enh Single Patient Station - Audio | H54: =SUMIF('Input for Auto Config'!C$16:C$29,B54,'Input for Auto Config'!D$16:D$29) -> 0 | K54: =VLOOKUP(B54,'2019'!C$3:H$220,5,FALSE) ->  | L54: 0.025 | M54: 0 | P54: 0.35
A55: " | B55: R4K14SA | C55: 2 | D55: 2 | E55: Single Patient w/ Staff Emer | H55: =SUMIF('Input for Auto Config'!C$16:C$29,B55,'Input for Auto Config'!D$16:D$29) -> 0 | K55: =VLOOKUP(B55,'2019'!C$3:H$220,5,FALSE) ->  | L55: 0.018 | M55: 0 | P55: 0.35
A56: " | B56: R4K16LV | D56: 2 | E56: Enhanced Single Patient Station - Visual | H56: =SUMIF('Input for Auto Config'!C$16:C$29,B56,'Input for Auto Config'!D$16:D$29) -> 0 | K56: =VLOOKUP(B56,'2019'!C$3:H$220,5,FALSE) ->  | L56: 0.015 | M56: 0 | P56: 0.35
A57: " | B57: R4K21V | C57: 4 | E57: Dual Patient Station - Visual | H57: =SUMIF('Input for Auto Config'!C$16:C$29,B57,'Input for Auto Config'!D$16:D$29) -> 0 | K57: =VLOOKUP(B57,'2019'!C$3:H$220,5,FALSE) ->  | L57: 0.004 | M57: 0 | P57: 0.35
A58: " | B58: R4K22A | C58: 2 | D58: 2 | E58: Dual Patient Station - Audio | H58: =SUMIF('Input for Auto Config'!C$16:C$29,B58,'Input for Auto Config'!D$16:D$29) -> 0 | K58: =VLOOKUP(B58,'2019'!C$3:H$220,5,FALSE) ->  | L58: 0.007 | M58: 0 | P58: 0.35
A59: " | B59: R4K23VA | C59: 4 | E59: Enhanced Dual Patient Station - Audio | H59: =SUMIF('Input for Auto Config'!C$16:C$29,B59,'Input for Auto Config'!D$16:D$29) -> 0 | K59: =VLOOKUP(B59,'2019'!C$3:H$220,5,FALSE) ->  | L59: 0.03 | M59: 0 | P59: 0.35
A60: " | B60: HSS400 | C60: 2 | E60: High Security Audio Bed Station | F60: 0 | G60: =D60*J60 -> 0 | H60: =SUMIF('Input for Auto Config'!C$16:C$29,B60,'Input for Auto Config'!D$16:D$29) -> 0 | J60: 0 | K60: =VLOOKUP(B60,'2019'!C$3:H$220,5,FALSE) -> 774 | L60: 0.01 | M60: 0 | P60: 0.35
A61: " | B61: HSS401 | C61: 2 | E61: High Security Staff Station | F61: 0 | G61: 0 | H61: =SUMIF('Input for Auto Config'!C$16:C$29,B61,'Input for Auto Config'!D$16:D$29) -> 0 | J61: 0 | K61: =VLOOKUP(B61,'2019'!C$3:H$220,5,FALSE) -> 774 | L61: 0.008 | M61: 0 | P61: 0.35
A62: " | B62: HSS433 | D62: 2 | E62: High Security Push Button Station | F62: 0 | G62: 0 | H62: =SUMIF('Input for Auto Config'!C$16:C$29,B62,'Input for Auto Config'!D$16:D$29) -> 0 | J62: 0 | K62: =VLOOKUP(B62,'2019'!C$3:H$220,5,FALSE) -> 774 | L62: 0.015 | M62: 0 | P62: 0.35 | Q62: =IF(J62*P62=0," ",J62*P62) -> 
A63: " | B63: R4KSS | C63: 2 | E63: Staff Station | H63: =SUMIF('Input for Auto Config'!C$16:C$29,B63,'Input for Auto Config'!D$16:D$29) -> 0 | K63: =VLOOKUP(B63,'2019'!C$3:H$220,5,FALSE) ->  | L63: 0.005 | M63: 0 | P63: 0.35
A64: " | B64: R4KDY | C64: 2 | D64: 2 | E64: Duty Station | H64: =SUMIF('Input for Auto Config'!C$16:C$29,B64,'Input for Auto Config'!D$16:D$29) -> 0 | K64: =VLOOKUP(B64,'2019'!C$3:H$220,5,FALSE) ->  | L64: 0.012 | M64: 0 | P64: 0.35
A65: " | B65: R4K2JACK | D65: 4 | E65: SLIM Dual 1/4" Jack St | F65: 0 | G65: 0 | H65: =SUMIF('Input for Auto Config'!C$16:C$29,B65,'Input for Auto Config'!D$16:D$29) -> 0 | J65: 0 | K65: =VLOOKUP(B65,'2019'!C$3:H$220,5,FALSE) -> 135 | L65: 0.007 | M65: 0 | P65: 0.35
A66: " | B66: R4KCB13 | D66: 2 | E66: SLIM Code Button St | F66: 0 | G66: 0 | H66: =SUMIF('Input for Auto Config'!C$16:C$29,B66,'Input for Auto Config'!D$16:D$29) -> 0 | J66: 0 | K66: =VLOOKUP(B66,'2019'!C$3:H$220,5,FALSE) -> 102 | L66: 0.017 | M66: 0 | P66: 0.35
A67: " | B67: R4KDTY2 | C67: 2 | D67: 2 | E67: SLIM Duty St w/ Speaker | K67: =VLOOKUP(B67,'2019'!C$3:H$220,5,FALSE) ->  | L67: 0.012 | M67: 0 | P67: 0.35
A68: " | B68: R4KPB12 | D68: 2 | E68: SLIM Single Button St | F68: 0 | G68: 0 | H68: =SUMIF('Input for Auto Config'!C$16:C$29,B68,'Input for Auto Config'!D$16:D$29) -> 0 | J68: 0 | K68: =VLOOKUP(B68,'2019'!C$3:H$220,5,FALSE) -> 90 | L68: 0.004 | M68: 0 | P68: 0.35
A69: " | B69: R4KPB23 | D69: 2 | E69: SLIM Dual Button w/ Code St | F69: 0 | G69: 0 | H69: =SUMIF('Input for Auto Config'!C$16:C$29,B69,'Input for Auto Config'!D$16:D$29) -> 0 | J69: 0 | K69: =VLOOKUP(B69,'2019'!C$3:H$220,5,FALSE) -> 99 | L69: 0.017 | M69: 0 | P69: 0.5
A70: " | B70: R4KPC11 | D70: 2 | E70: SLIM Pull Cord St | F70: 0 | G70: 0 | H70: =SUMIF('Input for Auto Config'!C$16:C$29,B70,'Input for Auto Config'!D$16:D$29) -> 0 | J70: 0 | K70: =VLOOKUP(B70,'2019'!C$3:H$220,5,FALSE) -> 93 | L70: 0.002 | M70: 0 | P70: 0.35
A71: " | B71: R4KSAR | D71: 2 | E71: SLIM Dual Button St | F71: 0 | G71: 24 | H71: =SUMIF('Input for Auto Config'!C$16:C$29,B71,'Input for Auto Config'!D$16:D$29) -> 12 | J71: 12 | K71: =VLOOKUP(B71,'2019'!C$3:H$220,5,FALSE) -> 102 | L71: 0.007 | M71: 0.084 | P71: 0.5 | Q71: 6
A72: " | B72: R4KSPK | C72: 2 | E72: SLIM Speaker Module | F72: 0 | G72: 0 | H72: =SUMIF('Input for Auto Config'!C$16:C$29,B72,'Input for Auto Config'!D$16:D$29) -> 0 | J72: 0 | K72: =VLOOKUP(B72,'2019'!C$3:H$220,5,FALSE) -> 45 | P72: 0.35
A73: " | B73: R4KESR | D73: 2 | E73: Emergency/Staff Registration Station | H73: =SUMIF('Input for Auto Config'!C$16:C$29,B73,'Input for Auto Config'!D$16:D$29) -> 0 | K73: =VLOOKUP(B73,'2019'!C$3:H$220,5,FALSE) ->  | L73: 0.007 | M73: =L73*J73 -> 0 | P73: 0.35
A74: " | B74: R4KCNCL | D74: 2 | E74: Cancel Station | H74: =SUMIF('Input for Auto Config'!C$16:C$29,B74,'Input for Auto Config'!D$16:D$29) -> 0 | K74: =VLOOKUP(B74,'2019'!C$3:H$220,5,FALSE) ->  | P74: 0.35
A75: " | B75: R4KCB12 | D75: 2 | E75: Code Blue Station | H75: =SUMIF('Input for Auto Config'!C$16:C$29,B75,'Input for Auto Config'!D$16:D$29) -> 0 | K75: =VLOOKUP(B75,'2019'!C$3:H$220,5,FALSE) ->  | L75: 0.017 | M75: =L75*J75 -> 0 | P75: 0.35
A76: " | B76: R4KPB11 | D76: 2 | E76: Single Push Button -Push for Help | H76: =SUMIF('Input for Auto Config'!C$16:C$29,B76,'Input for Auto Config'!D$16:D$29) -> 0 | K76: =VLOOKUP(B76,'2019'!C$3:H$220,5,FALSE) ->  | L76: 0.004 | M76: 0 | P76: 0.35
A77: " | B77: R4KPC10 | D77: 2 | E77: Pull Cord Station | H77: =SUMIF('Input for Auto Config'!C$16:C$29,B77,'Input for Auto Config'!D$16:D$29) -> 0 | K77: =VLOOKUP(B77,'2019'!C$3:H$220,5,FALSE) ->  | L77: 0.002 | M77: 0 | P77: 0.35
A78: " | B78: R4KPB22 | D78: 2 | E78: Dual Push Button Station | H78: =SUMIF('Input for Auto Config'!C$16:C$29,B78,'Input for Auto Config'!D$16:D$29) -> 0 | K78: =VLOOKUP(B78,'2019'!C$3:H$220,5,FALSE) ->  | L78: 0.017 | M78: 0 | P78: 0.5
A79: " | B79: R4KPB44 | D79: 4 | E79: Four Button Status Station | H79: =SUMIF('Input for Auto Config'!C$16:C$29,B79,'Input for Auto Config'!D$16:D$29) -> 0 | K79: =VLOOKUP(B79,'2019'!C$3:H$220,5,FALSE) ->  | L79: 0.011 | M79: 0 | P79: 0.5
A80: " | B80: R4KSR1 | D80: 2 | E80: Staff Register Station | H80: =SUMIF('Input for Auto Config'!C$16:C$29,B80,'Input for Auto Config'!D$16:D$29) -> 0 | K80: =VLOOKUP(B80,'2019'!C$3:H$220,5,FALSE) ->  | L80: 0.002 | M80: 0 | P80: 0.35
A81: " | B81: R4KFB1 | C81: 1 | D81: 1 | E81: Feature Bed Interface | F81: =C81*J81 -> 0 | G81: =D81*J81 -> 0 | H81: =SUMIF('Input for Auto Config'!G$16:G$29,'R5K Details'!B81,'Input for Auto Config'!H$16:H$29) -> 0 | J81: =H81+I81 -> 0 | K81: =VLOOKUP(B81,'2019'!C$3:H$220,5,FALSE) -> 132 | L81: 0.075 | M81: 0 | P81: 0.05
A82: " | B82: R4KSLC1 | D82: 2 | E82: Single Light Control Module | F82: 0 | G82: =D82*J82 -> 0 | H82: =SUMIF('Input for Auto Config'!G$16:G$29,'R5K Details'!B82,'Input for Auto Config'!H$16:H$29) -> 0 | J82: =H82+I82 -> 0 | K82: =VLOOKUP(B82,'2019'!C$3:H$220,5,FALSE) -> 81 | L82: 0.013 | M82: 0 | P82: 0.05
A83: " | B83: R4KDLC2 | D83: 3 | E83: Dual Light Control Module | F83: 0 | G83: =D83*J83 -> 0 | H83: =SUMIF('Input for Auto Config'!G$16:G$29,'R5K Details'!B83,'Input for Auto Config'!H$16:H$29) -> 0 | J83: =H83+I83 -> 0 | K83: =VLOOKUP(B83,'2019'!C$3:H$220,5,FALSE) -> 135 | L83: 0.023 | M83: 0 | P83: 0.05
A84: " | B84: R4KTVA | E84: TV Adapter pigtail kit (Set of 10) | H84: =SUMIF('Input for Auto Config'!G$16:G$29,'R5K Details'!B84,'Input for Auto Config'!H$16:H$29) -> 0 | J84: =ROUNDUP(I84+H84,0) -> 0 | K84: =VLOOKUP(B84,'2019'!C$3:H$220,5,FALSE) -> 42 | P84: 0.25
A85: " | B85: R4KTVR1 | C85: 2 | E85: Digital TV Isolation Module | F85: 0 | G85: =D85*J85 -> 0 | H85: =SUMIF('Input for Auto Config'!G$16:G$29,'R5K Details'!B85,'Input for Auto Config'!H$16:H$29) -> 0 | J85: =H85+I85 -> 0 | K85: =VLOOKUP(B85,'2019'!C$3:H$220,5,FALSE) -> 54 | L85: 0.015 | M85: =L85*J85 -> 0 | P85: 0.25
A86: " | B86: R4KFAM | C86: 1 | D86: 1 | E86: Fire/Auxiliary Module | F86: 0 | G86: =D86*J86 -> 0 | J86: =I86 -> 0 | K86: =VLOOKUP(B86,'2019'!C$3:H$220,5,FALSE) -> 117 | L86: 0.03 | M86: =L86*J86 -> 0 | P86: 0.25
A87: " | B87: R4KCAL | C87: 1 | D87: 1 | E87: Call Assurance Light | F87: 0 | G87: =D87*J87 -> 0 | H87: =SUMIF('Input for Auto Config'!G$16:G$29,'R5K Details'!B87,'Input for Auto Config'!H$16:H$29) -> 0 | J87: =I87+H87 -> 0 | K87: =VLOOKUP(B87,'2019'!C$3:H$220,5,FALSE) -> 81 | L87: 0.005 | M87: =L87*J87 -> 0 | P87: 0.35
A88: Corridor Devices
A89: RAULAND | B89: R5KCL506 | C89: 2 | E89: 5-Bulb, Visual Corridor Light | F89: =C89*J89 -> 0 | H89: =SUMIF('Input for Auto Config'!C$16:C$29,B89,'Input for Auto Config'!D$16:D$29) -> 0 | J89: =H89+I89 -> 0 | K89: =VLOOKUP(B89,'2019'!C$3:H$220,5,FALSE) -> 198 | L89: 0.036 | M89: =L89*J89 -> 0 | O89: =IF(J89*N89=0," ",J89*N89) ->  | P89: 0.75 | Q89: =IF(J89*P89=0," ",J89*P89) -> 
A90: " | B90: R5KCL516 | C90: 2 | E90: 5-Bulb, 1-Point Audio Corridor Light | F90: 0 | H90: =SUMIF('Input for Auto Config'!C$16:C$29,B90,'Input for Auto Config'!D$16:D$29) -> 0 | J90: =H90+I90 -> 0 | K90: =VLOOKUP(B90,'2019'!C$3:H$220,5,FALSE) -> 237 | L90: 0.038 | M90: 0 | P90: 0.75
A91: " | B91: R5KCL546 | C91: 2 | E91: 5-Bulb, 4-Point Audio Corridor Light | F91: 24 | H91: =SUMIF('Input for Auto Config'!C$16:C$29,B91,'Input for Auto Config'!D$16:D$29) -> 12 | J91: 12 | K91: =VLOOKUP(B91,'2019'!C$3:H$220,5,FALSE) -> 270 | L91: 0.058 | M91: 0.696 | P91: 0.75 | Q91: 9
A92: " | B92: CLA246 | C92: 2 | E92: R4K 4 Bulb, 1-Point Audio Corridor Light | F92: =C92*J92 -> 0 | H92: =SUMIF('Input for Auto Config'!C$16:C$29,B92,'Input for Auto Config'!D$16:D$29) -> 0 | J92: 0 | K92: =VLOOKUP(B92,'2019'!C$3:H$220,5,FALSE) -> 429 | L92: 0.138 | M92: 0
A93: " | B93: CLAR46 | C93: 12 | E93: R4K 4 Point Audio Relay Kit for CLA246 | F93: =C93*J93 -> 0 | H93: =SUMIF('Input for Auto Config'!C$16:C$29,B93,'Input for Auto Config'!D$16:D$29) -> 0 | J93: 0 | K93: =VLOOKUP(B93,'2019'!C$3:H$220,5,FALSE) -> 132 | L93: 0.32 | M93: 0
A94: " | B94: R5KDC06 | C94: 2 | E94: 6-Point Visual Domeless Controller | F94: 8 | H94: =SUMIF('Input for Auto Config'!C$16:C$29,B94,'Input for Auto Config'!D$16:D$29) -> 4 | J94: 4 | K94: =VLOOKUP(B94,'2019'!C$3:H$220,5,FALSE) -> 264 | L94: 0.016 | M94: 0.064 | P94: 1 | Q94: 4
A95: " | B95: R5KDC016 | C95: 2 | E95: 16-Point Visual Domeless Controller | F95: 0 | H95: =SUMIF('Input for Auto Config'!C$16:C$29,B95,'Input for Auto Config'!D$16:D$29) -> 0 | J95: 0 | K95: =VLOOKUP(B95,'2019'!C$3:H$220,5,FALSE) -> 369 | L95: 0.017 | M95: 0 | P95: 0.75
A96: " | B96: R5KDC46 | C96: 2 | E96: 6-Point, 4-Point Audio Domeless Controller | F96: 2 | H96: =SUMIF('Input for Auto Config'!C$16:C$29,B96,'Input for Auto Config'!D$16:D$29) -> 1 | J96: 1 | K96: =VLOOKUP(B96,'2019'!C$3:H$220,5,FALSE) -> 315 | L96: 0.038 | M96: 0.038 | P96: 0.75 | Q96: 0.75
A97: " | B97: R5KDC16D | C97: 2 | E97: 6-Point, 1 Point Audio Duty Domeless Controller | F97: =C97*J97 -> 0 | H97: =IF(SUMIF('Input for Auto Config'!C$16:C$29,B97,'Input for Auto Config'!D$16:D$29)=0,J40,SUMIF('Input for Auto Config'!C$16:C$29,B97,'Input for Auto Config'!D$16:D$29)) -> 0 | J97: 0 | K97: =VLOOKUP(B97,'2019'!C$3:H$220,5,FALSE) -> 330 | L97: 0.058 | M97: 0 | P97: 0.75
A98: " | B98: R5KDCRC4 | C98: 4 | E98: Relay Output Control | F98: 0 | H98: =SUMIF('Input for Auto Config'!C$16:C$29,B98,'Input for Auto Config'!D$16:D$29) -> 0 | J98: 0 | K98: =VLOOKUP(B98,'2019'!C$3:H$220,5,FALSE) -> 120 | L98: 0.032 | M98: 0 | P98: 0.25
A99: " | B99: R5KDCRCS4 | C99: 4 | E99: Solid State Relay Output Control | F99: 0 | H99: =SUMIF('Input for Auto Config'!C$16:C$29,B99,'Input for Auto Config'!D$16:D$29) -> 0 | J99: 0 | K99: =VLOOKUP(B99,'2019'!C$3:H$220,5,FALSE) -> 144 | L99: 0.021 | M99: 0 | P99: 0.25
A100: " | B100: CLV122 | C100: 2 | E100: Visual 2-Bulb Corridor Light | H100: =SUMIF('Input for Auto Config'!C$16:C$29,B100,'Input for Auto Config'!D$16:D$29) -> 0 | K100: =VLOOKUP(B100,'2019'!#REF!,5,FALSE) ->  | L100: 0.022 | M100: 0 | P100: 0.75
A101: " | B101: CLV144 | C101: 2 | E101: Visual 4-Bulb Corridor Light | H101: =SUMIF('Input for Auto Config'!C$16:C$29,B101,'Input for Auto Config'!D$16:D$29) -> 0 | K101: =VLOOKUP(B101,'2019'!#REF!,5,FALSE) ->  | L101: 0.032 | M101: 0 | P101: 0.75
A102: " | B102: DCV100 | C102: 2 | E102: Visual Domeless Controller - 6 pt | H102: =SUMIF('Input for Auto Config'!C$16:C$29,B102,'Input for Auto Config'!D$16:D$29) -> 0 | K102: =VLOOKUP(B102,'2019'!#REF!,5,FALSE) ->  | L102: 0.012 | M102: 0 | P102: 0.75
A103: " | B103: DCV116 | C103: 2 | E103: Visual Domeless Controller - 16 pt | H103: =SUMIF('Input for Auto Config'!C$16:C$29,B103,'Input for Auto Config'!D$16:D$29) -> 0 | K103: =VLOOKUP(B103,'2019'!#REF!,5,FALSE) ->  | L103: 0.012 | M103: 0 | P103: 1
A104: " | B104: CLA222 | C104: 2 | E104: Audio 2-Bulb Corridor Light | H104: =SUMIF('Input for Auto Config'!C$16:C$29,B104,'Input for Auto Config'!D$16:D$29) -> 0 | K104: =VLOOKUP(B104,'2019'!#REF!,5,FALSE) ->  | L104: 0.068 | M104: 0 | P104: 0.75
A105: " | B105: CLA244 | C105: 2 | E105: Audio 4-Bulb Corridor Light | H105: =SUMIF('Input for Auto Config'!C$16:C$29,B105,'Input for Auto Config'!D$16:D$29) -> 0 | K105: =VLOOKUP(B105,'2019'!#REF!,5,FALSE) ->  | L105: 0.078 | M105: 0 | P105: 0.75
A106: " | B106: CLA214D | C106: 2 | E106: Audio 4-Bulb Duty Corridor Light | H106: =SUMIF('Input for Auto Config'!C$16:C$29,B106,'Input for Auto Config'!D$16:D$29) -> 0 | K106: =VLOOKUP(B106,'2019'!#REF!,5,FALSE) ->  | L106: 0.098 | M106: 0 | P106: 0.75
A107: " | B107: DCA200 | C107: 2 | E107: Audio Domeless Controller - 6 pt | H107: =SUMIF('Input for Auto Config'!C$16:C$29,B107,'Input for Auto Config'!D$16:D$29) -> 0 | K107: =VLOOKUP(B107,'2019'!#REF!,5,FALSE) ->  | L107: 0.038 | M107: 0 | P107: 0.75
A108: " | B108: DCA214D | C108: 2 | E108: Audio Duty Domeless Controller - 6 pt | H108: =SUMIF('Input for Auto Config'!C$16:C$29,B108,'Input for Auto Config'!D$16:D$29) -> 0 | K108: =VLOOKUP(B108,'2019'!#REF!,5,FALSE) ->  | L108: 0.058 | M108: 0 | P108: 0.75
A109: " | B109: DCA216 | C109: 2 | E109: Audio Domeless Controller - 16 pt | H109: =SUMIF('Input for Auto Config'!C$16:C$29,B109,'Input for Auto Config'!D$16:D$29) -> 0 | K109: =VLOOKUP(B109,'2019'!#REF!,5,FALSE) ->  | L109: 0.038 | M109: 0 | P109: 1
A110: " | B110: CLAR4 | E110: Four Station Audio Relay Kit | H110: =SUMIF('Input for Auto Config'!C$16:C$29,B110,'Input for Auto Config'!D$16:D$29) -> 0 | K110: =VLOOKUP(B110,'2019'!#REF!,5,FALSE) ->  | L110: 0.032 | M110: 0 | P110: 0.25
A111: " | B111: R4KOUT4R | D111: 2 | E111: Visual Relay Output Control | H111: =SUMIF('Input for Auto Config'!C$16:C$29,B111,'Input for Auto Config'!D$16:D$29) -> 0 | K111: =VLOOKUP(B111,'2019'!#REF!,5,FALSE) ->  | L111: 0.032 | M111: 0 | P111: 0.25
A112: " | B112: R4KOUT4S | D112: 2 | E112: Audio Solid State Relay Output Control | H112: =SUMIF('Input for Auto Config'!C$16:C$29,B112,'Input for Auto Config'!D$16:D$29) -> 0 | K112: =VLOOKUP(B112,'2019'!#REF!,5,FALSE) ->  | L112: 0.021 | M112: 0 | P112: 0.25
A113: Accessories
A114: RAULAND | B114: 350018 | E114: 8pin Inlinecon Cat-5 Cat-6(100) (Not to be used with R4K CL/DC) | F114: =SUM(F22:F29,F33:F72,G48:G72,G28:G29,F82:F87,G82:G87,F89:F99,F121:F122,G121:G122,) -> 185 | H114: =ROUNDUP(F114/100,0) -> 2 | J114: =I114+H114 -> 2 | K114: =VLOOKUP(B114,'2019'!C$3:H$220,5,FALSE) -> 337.5 | O114: =IF(J114*N114=0," ",J114*N114) ->  | Q114: =IF(J114*P114=0," ",J114*P114) -> 
A115: " | B115: R4KCONN6 | E115: 6-Pin connectors (Bag of 100) | G115: =SUM(G81) -> 0 | H115: =CEILING(G115/100, 1) -> 0 | J115: =I115+H115 -> 0 | K115: =VLOOKUP(B115,'2019'!C$3:H$220,5,FALSE) -> 486 | O115: =IF(J115*N115=0," ",J115*N115) ->  | Q115: =IF(J115*P115=0," ",J115*P115) -> 
A116: " | B116: R4KCONN8 | E116: 8-Pin connectors (Bag of 100) | F116: =SUM(F81) -> 0 | H116: =CEILING(F116/100, 1) -> 0 | K116: =VLOOKUP(B116,'2019'!C$3:H$220,5,FALSE) ->  | O116: =IF(J116*N116=0," ",J116*N116) ->  | Q116: =IF(J116*P116=0," ",J116*P116) -> 
A117: " | B117: 350006 | E117: Crimping tool Adapter | J117: =I117+H117 -> 0 | K117: =VLOOKUP(B117,'2019'!C$3:H$220,5,FALSE) -> 82.5
A118: " | B118: 350007 | E118: Station Removal Tool | J118: =I118+H118 -> 0 | K118: =VLOOKUP(B118,'2019'!C$3:H$220,5,FALSE) -> 40
A119: " | B119: R4KCRIMP | E119: Responder 4000 Crimp Tool | J119: =I119 -> 0 | K119: =VLOOKUP(B119,'2019'!C$3:H$220,5,FALSE) -> 60 | O119: =IF(J119*N119=0," ",J119*N119) ->  | Q119: =IF(J119*P119=0," ",J119*P119) -> 
A120: " | B120: R4KSTAC | E120: R4K Test Adapter Cables | J120: =I120 -> 0 | K120: =VLOOKUP(B120,'2019'!C$3:H$220,5,FALSE) -> 129
A121: " | B121: R4KKBS | C121: 3 | E121: K-Bus Splitter | F121: =C121*J121 -> 0 | G121: =D121*J121 -> 0 | J121: =I121 -> 0 | K121: =VLOOKUP(B121,'2019'!C$3:H$220,5,FALSE) -> 42 | P121: 0.25
A122: " | B122: R4KKBSP | C122: 3 | E122: K-Bus Splitter w/ Power | F122: =C122*J122 -> 0 | G122: =D122*J122 -> 0 | J122: =I122 -> 0 | K122: =VLOOKUP(B122,'2019'!C$3:H$220,5,FALSE) -> 48 | P122: 0.25
A123: " | B123: R5KPADP | E123: R5K Adapter Plates (10) | J123: =H123+I123 -> 0 | K123: =VLOOKUP(B123,'2019'!C$3:H$220,5,FALSE) -> 111 | P123: 0.35
A124: " | B124: 350026 | E124: R5 & R4K Single Gang Adapter Plates | J124: 0 | K124: =VLOOKUP(B124,'2019'!C$3:H$220,5,FALSE) -> 52.5 | P124: 0.1
A125: " | B125: 350008 | E125: Clear Station Cover (SLIM 1 & 2 Button Stations) | J125: =I125+H125 -> 0 | K125: =VLOOKUP(B125,'2019'!C$3:H$220,5,FALSE) -> 62.5 | P125: 0.1
A126: " | B126: 350027 | E126: Recessed 1-Gang Adapter Plate | J126: =I126+H126 -> 0 | K126: =VLOOKUP(B126,'2019'!C$3:H$220,5,FALSE) -> 102.5 | P126: 0.05
A127: " | B127: 350028 | E127: Recessed 2-Gang Adapter Plate | J127: =I127+H127 -> 0 | K127: =VLOOKUP(B127,'2019'!C$3:H$220,5,FALSE) -> 115 | O127: =IF(J127*N127=0," ",J127*N127) ->  | P127: 2
A128: " | B128: CLS103 | E128: 3 Lamp High Security Dome Lite | J128: =I128 -> 0 | K128: =VLOOKUP(B128,'2019'!C$3:H$220,5,FALSE) -> 276 | L128: 0.2 | M128: =L128*J128 -> 0 | O128: =IF(J128*N128=0," ",J128*N128) ->  | P128: 2
A129: Pillow Speakers/Call Cords/Other
A130: RAULAND | B130: NCPSDSL2 | E130: Digital Pillow Speaker, 2 Lts | H130: =SUMIF('Input for Auto Config'!G$16:G$29,'R5K Details'!B130,'Input for Auto Config'!H$16:H$29) -> 0 | J130: =H130+I130 -> 0 | K130: =VLOOKUP(B130,'2019'!C$3:H$220,5,FALSE) -> 330 | M130: =IF(J130*L130=0," ",J130*L130) ->  | O130: =IF(J130*N130=0," ",J130*N130) ->  | P130: 0.1 | Q130: =IF(J130*P130=0," ",J130*P130) -> 
A131: " | B131: NCPSDSTV | E131: Digital Pillow Speaker, TV | H131: =SUMIF('Input for Auto Config'!G$16:G$29,'R5K Details'!B131,'Input for Auto Config'!H$16:H$29) -> 0 | J131: 0 | K131: =VLOOKUP(B131,'2019'!C$3:H$220,5,FALSE) -> 330 | P131: 0.1
A132: " | B132: NCPSKPL2 | E132: Direct Access Digital PS, 2 Lt | H132: =SUMIF('Input for Auto Config'!G$16:G$29,'R5K Details'!B132,'Input for Auto Config'!H$16:H$29) -> 0 | J132: 0 | K132: =VLOOKUP(B132,'2019'!C$3:H$220,5,FALSE) -> 345 | P132: 0.1
A133: " | B133: NCPSKPTV | E133: Direct Access Digital PS, TV | H133: =SUMIF('Input for Auto Config'!G$16:G$29,'R5K Details'!B133,'Input for Auto Config'!H$16:H$29) -> 0 | J133: =H133+I133 -> 0 | K133: =VLOOKUP(B133,'2019'!C$3:H$220,5,FALSE) -> 345 | P133: 0.1
A134: " | B134: NCSAV | E134: DIN Cord Saver | H134: =SUMIF('Input for Auto Config'!G$16:G$29,'R5K Details'!B134,'Input for Auto Config'!H$16:H$29) -> 0 | J134: 0 | K134: =VLOOKUP(B134,'2019'!C$3:H$220,5,FALSE) -> 42.5 | M134: =IF(J134*L134=0," ",J134*L134) ->  | P134: 0.1 | Q134: =IF(J134*P134=0," ",J134*P134) -> 
A135: " | B135: CCDIN3 | E135: Handheld Pendent - 2 Lights (8-pin DIN) | H135: =SUMIF('Input for Auto Config'!G$16:G$29,'R5K Details'!B135,'Input for Auto Config'!H$16:H$29) -> 0 | J135: =H135+I135 -> 0 | K135: =VLOOKUP(B135,'2019'!C$3:H$220,5,FALSE) -> 117.5 | M135: =IF(J135*L135=0," ",J135*L135) ->  | P135: 0.1 | Q135: =IF(J135*P135=0," ",J135*P135) -> 
A136: " | B136: CCDIN | E136: Call Cord - Single w/ Clip (10 ft.) | H136: =SUMIF('Input for Auto Config'!G$16:G$29,'R5K Details'!B136,'Input for Auto Config'!H$16:H$29) -> 41 | J136: 41 | K136: =VLOOKUP(B136,'2019'!C$3:H$220,5,FALSE) -> 55 | M136: =IF(J136*L136=0," ",J136*L136) ->  | P136: 0.1 | Q136: =IF(J136*P136=0," ",J136*P136) -> 4.1
A137: " | B137: CC200 | E137: Call Cord - 1/4" Jack Call Cord w/ Clip (10ft.) | H137: =SUMIF('Input for Auto Config'!G$16:G$29,'R5K Details'!B137,'Input for Auto Config'!H$16:H$29) -> 0 | J137: 0 | K137: =VLOOKUP(B137,'2019'!C$3:H$220,5,FALSE) -> 45 | M137: =IF(J137*L137=0," ",J137*L137) ->  | P137: 0.1 | Q137: =IF(J137*P137=0," ",J137*P137) -> 
A138: " | B138: NC4JACK | E138: 1/4" Jack Auxiliary Input Station | H138: =SUMIF('Input for Auto Config'!C$16:C$29,B138,'Input for Auto Config'!D$16:D$29) -> 0 | J138: =I138+H138 -> 0 | K138: =VLOOKUP(B138,'2019'!C$3:H$220,5,FALSE) -> 195 | P138: 0.5
A139: " | B139: NCBED | E139: 37-pin Feature Bed Receptacle | J139: =I139 -> 0 | K139: =VLOOKUP(B139,'2019'!C$3:H$220,5,FALSE) -> 145 | M139: =IF(J139*L139=0," ",J139*L139) ->  | P139: 0.5 | Q139: =IF(J139*P139=0," ",J139*P139) -> 
A140: " | B140: NCC37 | E140: 37-pin Feature Bed Cable | J140: 0 | K140: =VLOOKUP(B140,'2019'!C$3:H$220,5,FALSE) -> 157.5 | P140: 0.5
A141: " | B141: NCC37RA | E141: 37-pin Feature Bed Cable -Right Angle | J141: 0 | K141: =VLOOKUP(B141,'2019'!C$3:H$220,5,FALSE) -> 157.5 | P141: 0.5
A142: " | B142: NCLV120 | E142: Low Voltage Lighting Control 120V | H142: =SUMIF('Input for Auto Config'!G$16:G$29,'R5K Details'!B142,'Input for Auto Config'!H$16:H$29) -> 0 | K142: =VLOOKUP(B142,'2019'!C$3:H$220,5,FALSE) ->  | M142: =IF(J142*L142=0," ",J142*L142) ->  | P142: 0.5 | Q142: =IF(J142*P142=0," ",J142*P142) -> 
A143: " | B143: CM300 | E143: Chassis Fault Monitor | J143: 0 | K143: =VLOOKUP(B143,'2019'!C$3:H$220,5,FALSE) -> 385 | P143: 0.5
A144: " | B144: PM300 | E144: Power Fault Monitor | J144: 0 | K144: =VLOOKUP(B144,'2019'!C$3:H$220,5,FALSE) -> 342.5 | P144: 0.5
A145: " | B145: 350011 | E145: Bio-seals - Cancel Button (10) -- R4K SLIM ONLY | J145: 0 | K145: =VLOOKUP(B145,'2019'!C$3:H$220,5,FALSE) -> 27.5 | P145: 0.5
A146: " | B146: 350012 | E146: Bio-seals-Small Push Button (10) -- R4K SLIM ONLY | J146: 0 | K146: =VLOOKUP(B146,'2019'!C$3:H$220,5,FALSE) -> 27.5 | P146: 0.5
A147: " | B147: 350013 | E147: Bio-seals Large Push Button (10) -- R4K SLIM ONLY | J147: 0 | K147: =VLOOKUP(B147,'2019'!C$3:H$220,5,FALSE) -> 37.5 | P147: 0.5
A148: WaveWare | B148: STG | E148: WaveWare SIP to Tap Gateway | H148: =IF('Input for Auto Config'!C8="Yes",1,0) -> 1 | J148: =I148+H148 -> 1 | K148: =order_hack!F180 -> http://wirelessmessaging.com/ | P148: 2 | Q148: 2
A149: WaveWare | B149: SPS-5V9E | E149: WaveWare Paging Transmitter for STG, 5W, Site Licensing | H149: =IF('Input for Auto Config'!C8="Yes",1,0) -> 1 | J149: =I149+H149 -> 1 | K149: =order_hack!F181 -> http://wirelessmessaging.com/ | P149: 2 | Q149: 2
A150: WaveWare | B150: 0250-1250 | E150: WaveWare Responder 5000 Messaging Server | H150: =IF('Input for Auto Config'!C9="Yes",1,0) -> 0 | J150: =I150+H150 -> 0 | K150: =order_hack!F182 -> http://wirelessmessaging.com/
A151: WaveWare | B151: 0250-1003 | E151: WaveWare 10 User Account Bundle (app licenses) | H151: =IF(AND('Input for Auto Config'!C9="yes",'Input for Auto Config'!C10=""),10000,IF('Input for Auto Config'!C10<=2,0,IF('Input for Auto Config'!C10>2,ROUNDUP(('Input for Auto Config'!C10-2)/10,0)))) -> 0 | J151: =I151+H151 -> 0 | K151: =order_hack!F183 -> http://wirelessmessaging.com/
A152: " | E152: =IF(B152="","",VLOOKUP(B152,'2019'!#REF!,2,FALSE)) ->  | J152: =I152 -> 0 | K152: =IF(B152="",0,VLOOKUP(B152,'2019'!C$3:H$220,5,FALSE)) -> 0 | O152: =IF(J152*N152=0," ",J152*N152) ->  | Q152: =IF(J152*P152=0," ",J152*P152) -> 
E153: =IF(B153="","",VLOOKUP(B153,'2019'!#REF!,2,FALSE)) ->  | J153: 0 | K153: =IF(B153="",0,VLOOKUP(B153,'2019'!C$3:H$220,5,FALSE)) -> 0
E154: =IF(B154="","",VLOOKUP(B154,'2019'!#REF!,2,FALSE)) ->  | J154: 0 | K154: =IF(B154="",0,VLOOKUP(B154,'2019'!C$3:H$220,5,FALSE)) -> 0
E155: =IF(B155="","",VLOOKUP(B155,'2019'!#REF!,2,FALSE)) ->  | J155: =I155 -> 0 | K155: =IF(B155="",0,VLOOKUP(B155,'2019'!C$3:H$220,5,FALSE)) -> 0 | O155: =IF(J155*N155=0," ",J155*N155) ->  | Q155: =IF(J155*P155=0," ",J155*P155) -> 
L156: Amps --> | M156: =SUM(M27:M155,M22:M23) -> 1.246 | N156: Hours --> | O156: =SUM(O7:O154) -> 0 | P156: Hours --> | Q156: =SUM(Q7:Q154) -> 61.2
A158: =A2 -> International Responder 5000 2019 Estimate Sheet v 1.50 | M158: Job Name: | N158: =IF(N2="","",N2) -> HOSPITAL SAN JAVIER
A159: Cable | M159: System: | N159: =IF(N3="","",N3) -> CENCOMEX S.A.
B160: DATE: | E160: =IF(E4="","",E4) -> 2022-12-26 | M160: Salesperson: | N160: =IF(N4="","",N4) -> CRISTIAN YAÑEZ
A161: MANUF. | B161: Part # | E161: Description | J161: Qty | K161: Distributor Cable Cost per 1000' | L161: Distributor Extended Cable Cost | N161: Cable Labor | O161: Cable Labor Total | P161: Notes
E162: 4-Pair Cat5 Ethernet cable estimate (50ft/Room Device) | J162: =ROUNDUP(((SUM(J33:J80,J24)*50))/1000,0) -> 4 | K162: 100 | L162: =J162*K162 -> 400 | N162: 8 | O162: =IF(J162*N162=0," ",J162*N162) -> 32
E163: 4-Pair Cat5 Ethernet cable Estimate (250ft/Console) | J163: =ROUNDUP((SUM(J26:J26,J28,J23)*250)/1000,0) -> 1 | K163: 0 | L163: =J163*K163 -> 0 | N163: 8 | O163: 8
E164: 4-Pair Cat5 Ethernet cable (400ft/MSC) | J164: =ROUNDUP((SUM(J11)*400)/1000,0) -> 1 | K164: 0 | L164: 0 | N164: 8 | O164: 8
E165: 4-Pair Cat5 Ethernet cable (30ft/Corridor Light/Domeless Controller) | J165: =ROUNDUP((SUM(J89:J97,J100:J109)*30)/1000,0) -> 1 | K165: 0 | L165: 0 | N165: 8 | O165: 8
E166: Power Common - #12 AWG | K166: 0 | L166: 0 | N166: 8
E167: Power Common - #14 AWG | J167: =ROUNDUP((SUM(J11,J25,J27,J87,J14)*100/1000),0) -> 1 | K167: 0 | L167: 0 | N167: 8 | O167: 8
K168: 0 | L168: 0 | N168: 8
K169: 0 | L169: 0
K170: 0 | L170: 0
K171: 0 | L171: 0
K172: 0 | L172: 0
K173: 0 | L173: 0
K174: 0 | L174: 0
K175: 0 | L175: 0
K176: 0 | L176: 0
K177: 0 | L177: 0
K178: 0 | L178: 0
K179: 0 | L179: 0
K180: 0 | L180: 0
L181: Total Cable, Etc. | M181: =SUM(L162:L180) -> 400 | N181: Hours --> | O181: =SUM(O162:O180) -> 64

Sheet ORDER
A1: Responder 5000 Nurse Call System Purchase Order | D1: Project Name: | E1: =IF('R5K Details'!N2="","",'R5K Details'!N2) -> HOSPITAL SAN JAVIER | G1: Enter Original date of Quote
B2: Responder 5000 Nurse Call System Order Entry Fax (800) 217-0977 | E2: Revision Date | G2: =TODAY() -> 2022-12-27
A3: 1. Click on the "Generate Purchase Order" button to get a complete list of required components for your system. 2. Fill in the required information in the light yellow cells to complete your order, then sign both pages and fax to Rauland. | D3: Please fill in all Pale Yellow boxes before printing
B4: PURCHASE ORDER | E4: Dist. P.O. # :
B5: Distributor Information | E5: Facility Information
B6: Distributor Name & Address | C6: =IF('R5K Details'!N3="","",'R5K Details'!N3) -> CENCOMEX S.A. | E6: Facility Name:
B7: Project Name/No. | E7: Facility Address:
B8: Dist. Contact Person:
B10: Shipping Instructions: | C10: Ship To Address:
C11: Method of Shipment: | F11: Accept Partials? (yes/no): | H11: no
C12: Requested Ship Date (mm/dd/yy): | E12: Special Instructions? (yes/no): | H12: no
B13: Projected Time Frame for Job
A14: Qty. | B14: Part Number | C14: Description | D14: List Price Ea. | E14: Extended List Price | F14: Distributor Prices
A16: Head End | F16: Net | G16: Extended Net
A17: Responder 5000
A18: 1 | B18: R5KMPR15 | C18: Power Supply 15V for Stations, CLs, DCs (w/battery backup) | D18: 933 | E18: 933 | F18: 311 | G18: 311
A19: 1 | B19: R5KMPR36 | C19: Power Supply 36V for MSC, Console (w/battery backup) | D19: 900 | E19: 900 | F19: 300 | G19: 300
A20: 1 | B20: R5KMSC | C20: Main System Controller | D20: 1803 | E20: 1803 | F20: 601 | G20: 601
A21: 1 | B21: R5KL2KA | C21: Data Converter for K-Bus to L-Net | D21: 543 | E21: 543 | F21: 186 | G21: 186
A22: 1 | B22: R5KMTRM | C22: Termination Board | D22: 183 | E22: 183 | F22: 61 | G22: 61
A23: 1 | B23: R5KCONS | C23: VoIP Nurse Console | D23: 1836 | E23: 1836 | F23: 612 | G23: 612
A24: 12 | B24: R5KCL546 | C24: 5-Bulb, 4-Point Audio Corridor Light | D24: 270 | E24: 3240 | F24: 90 | G24: 1080
A25: 4 | B25: R5KDC06 | C25: 6-Point Visual Domeless Controller | D25: 264 | E25: 1056 | F25: 97 | G25: 388
A26: 1 | B26: R5KDC46 | C26: 6-Point, 4-Point Audio Domeless Controller | D26: 315 | E26: 315 | F26: 105 | G26: 105
A27: 41 | B27: R5KPS1A | C27: R5K Single Audio Patient Station | D27: 126 | E27: 5166 | F27: 44 | G27: 1804
A28: 18 | B28: R5KPC11WPS | C28: Waterproof Pullcord Station - Spanish | D28: 108 | E28: 1944 | F28: 36 | G28: 648
A29: 12 | B29: R4KSAR | C29: SLIM Dual Button St | D29: 102 | E29: 1224 | F29: 34 | G29: 408
A30: Software
A31: ACCESSORIES
A32: 2 | B32: 350018 | C32: 8pin Inlinecon Cat-5 Cat-6(100) (Not to be used with R4K CL/DC) | D32: 337.5 | E32: 675 | F32: 135 | G32: 270
A33: Pillow Speakers/Call Cords
A34: 41 | B34: CCDIN | C34: Call Cord - Single w/ Clip (10 ft.) | D34: 55 | E34: 2255 | F34: 22 | G34: 902
A90: * Prices not in printed Price List are subject to change. | D90: Responder 5000 Suggested List Total: | G90: =SUM(E17:E89) -> 22073
A91: Distributor Discount: | G91: =G90-G92 -> 14397 | H91: =1-order_hack!F4 -> 0.6 | I91: Price per Bed (List Price)
A92: This program should be used as a guide when configuring/pricing a Responder 5000 system. Rauland-Borg is not responsible for any discrepancies in this program. Refer to Responder 5000 Installation and Configuration Manuals for assistance. | E92: Discounted Price: | G92: =order_hack!G211 -> 7676 | I92: =IF(G90=0,0,IF(SUM(order_hack!C35:C36,order_hack!C38:C40,order_hack!C44:C51,(SUM(order_hack!C37,order_hack!C52:C54)*2))=0,0,G90/SUM(order_hack!C35:C36,order_hack!C38:C40,order_hack!C44:C51,(SUM(order_hack!C37,order_hack!C52:C54)*2)))) -> 538.3658537
D93: Total Cable Selling Cost --> | G93: 680
D94: Total Labor Cost --> | G94: 0
D95: Total Misc. Installation Cost --> | G95: 0
A96: Customer Responder 5000 Total: | G96: =SUM(G92:G95) -> 8356
C97: Yearly Software Maintenance Agreement Distributor Price | F97: See Below | G97: 0
C98: If the Total Price of the Miscellaneous items is over 1,000,000.00 then you need to go back to the General Information page and enter in values for some servers.
B100: =B117 -> TOTAL PRICE of Non-Rauland Miscellaneous Items not included in Quote above. | F100: See Below | G100: =E117 -> 0
B101: Enter Miscellaneous Items (not listed in this quote above)
B102: Enter Miscellaneous Non-Rauland Items (not listed elsewhere in this auto quote) | E102: Price Each | F102: Quantity | G102: Ext. Price
B103: SIP Firewall | G103: =F103*E103 -> 0
B104: Server - Reports to include MS SQL 2014 Express | E104: 4300 | F104: =IF('R5K Details'!J16=1,1,0) -> 0 | G104: 0
B105: Responder SIP Server | E105: 4300 | F105: =IF(AND('R5K Details'!J16=1,'R5K Details'!J19=1),0,IF(AND('R5K Details'!J16=0,'R5K Details'!J19=1),1,0)) -> 0 | G105: 0
E106: 0 | F106: 0 | G106: 0
E107: 0 | F107: 0 | G107: 0
E108: 0 | F108: 0 | G108: 0
E109: 0 | F109: 0 | G109: 0
E110: 0 | F110: 0 | G110: 0
E111: 0 | F111: 0 | G111: 0
E112: 0 | F112: 0 | G112: 0
E113: 0 | F113: 0 | G113: 0
E114: 0 | F114: 0 | G114: 0
E115: 0 | F115: 0 | G115: 0
B116: Miscellaneous Accessories Total: | G116: =SUM(G103:G115) -> 0
B117: TOTAL PRICE of Non-Rauland Miscellaneous Items not included in Quote above. | E117: =G116 -> 0
B120: Page 1 of 2 | G120: =TODAY() -> 2022-12-27
C121: Authorization Signature | E121: Name | G121: Date
B122: Rauland Order Entry Fax (800)217-0977
B123: We will accept Partial Shipments on Peripherals/Accessories? | H123: Y
B127: I authorize Rauland to add the following items to my order should they be required to make a system functional/complete: | F127: Power Supplies | H127: Y
F128: 8 port Switches | H128: Y
F129: K-Bus to L-Net Adapters | H129: Y
A132: Responder 5000 Nurse Call System Server Requirements (minimum)
B134: =IF(F104=1,"Responder Applications Server","") ->  | D134: =IF(F104=1,"Please refer to Application Note R5000_APPNOTE_In_Your_IT_Environment","") -> 
B135: =IF(F105=1,"Responder SIP Server","") ->  | D135: =IF(F105=1,"Please refer to Application Note R5000_APPNOTE_In_Your_IT_Environment","") -> 
B138: Facility Information
B139: Facility Name: | C139: =IF($F$6="","",$F$6) -> 
C140: =IF($F$7="","",$F$7) -> 
C141: =IF($F$8="","",$F$8) -> 
B142: Contact Name (optional): | D142: Contact Phone Number (optional):
A144: Software Maintenance Agreement
B145: Software Maintenance agreements entitles the facility to software service packs, new releases and customer support for all Responder Database, Application and Integration software after the first 12 months. Rauland will bill the distributor for the Software Maintenance Agreement 14 months after the software has been invoiced. The distributor will be billed monthly and will continue, unless otherwise instructed by the facility.
B147: The Software Maintenance Agreement cost will be automatically added to any purchase order.
C148: Yearly Software Maintenance Agreement Distributor Price | G148: =order_hack!F117 -> 0
A150: This program should be used as a guide when configuring/pricing a Responder 5 system. Rauland-Borg is not responsible for any discrepancies in this program. Refer to Responder 5 Installation and Configuration Manuals for assistance.
E152: =IF($E$132="","",$E$132) ->  | G152: 00:00:00
C153: Authorization Signature | E153: Name | G153: Date
B155: Customer Information | E155: Facility Information
B156: Customer | C156: =C6 -> CENCOMEX S.A. | E156: Facility Name: | F156: =F6 -> 0
B157: Project Name/No. | C157: =C7 -> 0 | E157: Facility Address: | F157: =F7 -> 0
B158: Cust. Contact Person: | C158: =C8 -> 0
B159: Facility Information | D159: Answer | F159: Helpful Information
B160: Type of Facility?
B161: # of licensed patient beds?
B162: # of inpatient units?
B163: Is this a stand alone facility or part of a healthcare system?
B164: If part of a system, how many facilities do you anticipate interfacing to a single data center?
B165: What brand of wireless devices does the site have? | G165: Cisco, Ascom i75, SpectraLink 900, etc.
B167: Network Information
B168: Is the datacenter in the same building as resident rooms?
B169: What is the speed to the datacenter from unit?
B170: Does the facility network operate on a WAN?
B171: Does the facility network operate on a LAN?
B172: Will the site allow remote access to servers via VPN?
B173: If so, which VPN client software?
B174: What type of switches does the site standardize on?
B175: Is a network topology diagram available for our review?
B177: Backup and Recovery Information
B178: Type of backup environment
B179: Frequency of backup
B180: Are the backup jobs run at a certain time of the day?
B181: What is the backup software vendor and application name?
B182: Is replication desired (required)?
B183: If so, who is the vendor for replication used?
B184: Does the site operate in a SAN environment?
B185: If so, who is the vendor used?
B187: Database Information
B188: Most common type of database server | G188: MS SQL, Oracle, etc.
B189: Is the site backing up the databases via MS SQL Server database utility, or using an external backup?
B190: Does the site archive their data in their databases? | G190: (remove data from database to conserve on space)
B191: Does the site have the ability to tune database performance?
B192: What is the site's policy for applying updates to MS SQL Server?
B194: Server Information
B195: Brand of servers typically used | G195: i.e. Dell, Compaq, IBM, etc.
B196: Name of Interface Engine
B197: Name of antivirus software vendor. | G197: McAfee, Norton, etc.
B198: Are the servers organized in grids?
B199: Name of operating systems supported.
B200: Are the site's servers virtualized?
B201: If so, who is the vendor and application?
B202: What is the site's policy for applying updates to the operating system, Windows Server?
B204: Software and Integration Information
B205: Who is the site's wireless phone vendor(s)?
B206: Is it integrated with their nurse call system?
B207: Who is the site's pager vendor?
B208: Who is the site's PBX (Public Branch Exchange) vendor?
B209: Is it integrated with their resident care system?
B210: Is it integrated via a middleware? If so, which middleware? | G210: staff, patients, assets, visitors
B212: Client Workstation Information
B213: Brand of PC's typically used | G213: Dell, Gateways, etc.
B214: Name and version of operating system typically seen | G214: Windows XP Professional sp2
B215: Name of antivirus software vendor for clients.
B216: Does the site use touch screen monitors?
B218: Security Information
B219: Name of directory or user services application
B220: Does the site use token identification? | G220: i.e. barcodes, proximity readers, swipe, etc.
B222: IT Personnel Information
B223: Is there a dedicated DBA on staff? | G223: provide names here
B224: Is there a network architect on staff? | G224: provide names here
B225: Is there a System Administrator on staff? | G225: provide names here
B226: Is there a dedicated Project Manager on staff for this project?

Sheet order_hack
A1: Responder 5000 Nurse Call System | E1: Project Name: | F1: Project Name
E2: Date: | F2: =TODAY() -> 2022-12-27
G3: GPO factor | H3: BOM setting
A4: distributor/dealer discount | F4: 0.4 | G4: 1.2
A5: R5K
A7: Model # | B7: Description | D7: Dist Net Price | E7: Extended Price | F7: List Price | G7: Extended List Price
J8: # of R4KPR400 | K8: # of R5KMPR15
A9: NC2828 | B9: Head-End Equipment Cabinet | C9: ='R5K Details'!J7 -> 0 | D9: =VLOOKUP(A9,'2019'!C$3:H$255,6,FALSE) -> 672 | E9: =D9*C9 -> 0 | F9: =VLOOKUP(A9,'2019'!C$3:H$225,5,FALSE) -> 1680 | G9: =F9*C9 -> 0 | K9: ='R5K Details'!J9 -> 1
A10: 351102 | B10: Wall Mounting Cabinet-head-end | C10: ='R5K Details'!J8 -> 0 | D10: =VLOOKUP(A10,'2019'!C$3:H$225,6,FALSE) -> 458 | E10: =D10*C10 -> 0 | F10: =VLOOKUP(A10,'2019'!C$3:H$225,5,FALSE) -> 1145 | G10: =F10*C10 -> 0
A11: R5KMPR15 | B11: Power Supply 15V for Stations, CLs, DCs (w/battery backup) | C11: =IF(J9=0,K9,K9) -> 1 | D11: =VLOOKUP(A11,'2019'!C$3:H$225,6,FALSE) -> 311 | E11: =D11*C11 -> 311 | F11: =VLOOKUP(A11,'2019'!C$3:H$225,5,FALSE) -> 933 | G11: 933
A12: R5KMPR36 | B12: Power Supply 36V for MSC, Console (w/battery backup) | C12: ='R5K Details'!J10 -> 1 | D12: =VLOOKUP(A12,'2019'!C$3:H$225,6,FALSE) -> 300 | E12: 300 | F12: =VLOOKUP(A12,'2019'!C$3:H$225,5,FALSE) -> 900 | G12: =F12*C12 -> 900
A13: R5KMSC | B13: Main System Controller | C13: ='R5K Details'!J11 -> 1 | D13: =VLOOKUP(A13,'2019'!C$3:H$225,6,FALSE) -> 601 | E13: 601 | F13: =VLOOKUP(A13,'2019'!C$3:H$225,5,FALSE) -> 1803 | G13: 1803
A14: 351010 | B14: Responder Network Concentrator | C14: ='R5K Details'!J12 -> 0 | D14: =VLOOKUP(A14,'2019'!C$3:H$225,6,FALSE) -> 4843 | E14: 0 | F14: =VLOOKUP(A14,'2019'!C$3:H$225,5,FALSE) -> 12107.5 | G14: =F14*C14 -> 0
A15: R5KM8PRT | B15: R5K 8-Port Switch | C15: ='R5K Details'!J13 -> 0 | D15: =VLOOKUP(A15,'2019'!C$3:H$225,6,FALSE) -> 371 | E15: 0 | F15: =VLOOKUP(A15,'2019'!C$3:H$225,5,FALSE) -> 1113 | G15: 0
A16: 351006 | B16: Fiber Adapter Modules | C16: ='R5K Details'!J14 -> 0 | D16: =VLOOKUP(A16,'2019'!C$3:H$225,6,FALSE) -> 204 | E16: 0 | F16: =VLOOKUP(A16,'2019'!C$3:H$225,5,FALSE) -> 510 | G16: =F16*C16 -> 0
A17: R5KL2KA | B17: Data Converter for K-Bus to L-Net | C17: ='R5K Details'!J15 -> 1 | D17: =VLOOKUP(A17,'2019'!C$3:H$225,6,FALSE) -> 186 | E17: 186 | F17: =VLOOKUP(A17,'2019'!C$3:H$225,5,FALSE) -> 543 | G17: 543
A18: R5KMTRM | B18: Termination Board | C18: ='R5K Details'!J25 -> 1 | D18: =VLOOKUP(A18,'2019'!C$3:H$225,6,FALSE) -> 61 | E18: 61 | F18: =VLOOKUP(A18,'2019'!C$3:H$225,5,FALSE) -> 183 | G18: 183
A19: R5KCONS | B19: VoIP Nurse Console | C19: ='R5K Details'!J26 -> 1 | D19: =VLOOKUP(A19,'2019'!C$3:H$225,6,FALSE) -> 612 | E19: 612 | F19: =VLOOKUP(A19,'2019'!C$3:H$225,5,FALSE) -> 1836 | G19: 1836
A20: R4KPA25 | B20: Paging Amplifier | C20: ='R5K Details'!J22 -> 0 | D20: =VLOOKUP(A20,'2019'!C$3:H$225,6,FALSE) -> 286 | E20: 0 | F20: =VLOOKUP(A20,'2019'!C$3:H$225,5,FALSE) -> 858 | G20: 0
A21: R4KMQCV2 | B21: Marquee Controller | C21: ='R5K Details'!J23 -> 0 | D21: =VLOOKUP(A21,'2019'!C$3:H$225,6,FALSE) -> 169 | E21: 0 | F21: =VLOOKUP(A21,'2019'!C$3:H$225,5,FALSE) -> 507 | G21: 0
A22: R4KMST | B22: Marquee Speaker Station | C22: ='R5K Details'!J24 -> 0 | D22: =VLOOKUP(A22,'2019'!C$3:H$225,6,FALSE) -> 41 | E22: 0 | F22: =VLOOKUP(A22,'2019'!C$3:H$225,5,FALSE) -> 123 | G22: 0
A23: R4KTMB | B23: Termination Board | C23: ='R5K Details'!J27 -> 0 | E23: =D23*C23 -> 0 | G23: 0
A24: R4KANNV2 | B24: Annunciate Panel (comes with a Receptacle) | C24: ='R5K Details'!J28 -> 0 | D24: =VLOOKUP(A24,'2019'!C$3:H$225,6,FALSE) -> 294 | E24: 0 | F24: =VLOOKUP(A24,'2019'!C$3:H$225,5,FALSE) -> 882 | G24: 0
A25: R4KRECP | B25: R4K Console Receptacle | C25: ='R5K Details'!J29 -> 0 | D25: =VLOOKUP(A25,'2019'!C$3:H$225,6,FALSE) -> 22 | E25: 0 | F25: =VLOOKUP(A25,'2019'!C$3:H$225,5,FALSE) -> 66 | G25: 0
A26: R5KCL506 | B26: 5-Bulb, Visual Corridor Light | C26: ='R5K Details'!J89 -> 0 | D26: =VLOOKUP(A26,'2019'!C$3:H$225,6,FALSE) -> 66 | E26: 0 | F26: =VLOOKUP(A26,'2019'!C$3:H$225,5,FALSE) -> 198 | G26: =F26*C26 -> 0
A27: R5KCL516 | B27: 5-Bulb, 1-Point Audio Corridor Light | C27: ='R5K Details'!J90 -> 0 | D27: =VLOOKUP(A27,'2019'!C$3:H$225,6,FALSE) -> 79 | E27: 0 | F27: =VLOOKUP(A27,'2019'!C$3:H$225,5,FALSE) -> 237 | G27: 0
A28: R5KCL546 | B28: 5-Bulb, 4-Point Audio Corridor Light | C28: ='R5K Details'!J91 -> 12 | D28: =VLOOKUP(A28,'2019'!C$3:H$225,6,FALSE) -> 90 | E28: 1080 | F28: =VLOOKUP(A28,'2019'!C$3:H$225,5,FALSE) -> 270 | G28: 3240
A29: R5KDC06 | B29: 6-Point Visual Domeless Controller | C29: ='R5K Details'!J94 -> 4 | D29: =VLOOKUP(A29,'2019'!C$3:H$225,6,FALSE) -> 97 | E29: 388 | F29: =VLOOKUP(A29,'2019'!C$3:H$225,5,FALSE) -> 264 | G29: 1056
A30: R5KDC016 | B30: 16-Point Visual Domeless Controller | C30: ='R5K Details'!J95 -> 0 | D30: =VLOOKUP(A30,'2019'!C$3:H$225,6,FALSE) -> 123 | E30: 0 | F30: =VLOOKUP(A30,'2019'!C$3:H$225,5,FALSE) -> 369 | G30: 0
A31: R5KDC46 | B31: 6-Point, 4-Point Audio Domeless Controller | C31: ='R5K Details'!J96 -> 1 | D31: =VLOOKUP(A31,'2019'!C$3:H$225,6,FALSE) -> 105 | E31: 105 | F31: =VLOOKUP(A31,'2019'!C$3:H$225,5,FALSE) -> 315 | G31: 315
A32: R5KDC16D | B32: 6-Point, 1 Point Audio Duty Domeless Controller | C32: ='R5K Details'!J97 -> 0 | D32: =VLOOKUP(A32,'2019'!C$3:H$225,6,FALSE) -> 116 | E32: 0 | F32: =VLOOKUP(A32,'2019'!C$3:H$225,5,FALSE) -> 330 | G32: 0
A33: R5KDCRC4 | B33: Relay Output Control | C33: ='R5K Details'!J98 -> 0 | D33: =VLOOKUP(A33,'2019'!C$3:H$225,6,FALSE) -> 40 | E33: 0 | F33: =VLOOKUP(A33,'2019'!C$3:H$225,5,FALSE) -> 120 | G33: 0
A34: R5KDCRCS4 | B34: Solid State Relay Output Control | C34: ='R5K Details'!J99 -> 0 | D34: =VLOOKUP(A34,'2019'!C$3:H$225,6,FALSE) -> 48 | E34: 0 | F34: =VLOOKUP(A34,'2019'!C$3:H$225,5,FALSE) -> 144 | G34: 0
A35: R5KPD2EA | B35: R5K Enhnaced Dual Patient Station | C35: ='R5K Details'!J33 -> 0 | D35: =VLOOKUP(A35,'2019'!C$3:H$225,6,FALSE) -> 79 | E35: 0 | F35: =VLOOKUP(A35,'2019'!C$3:H$225,5,FALSE) -> 216 | G35: 0
A36: R5KPS1EA | B36: R5K Enhanced Single Station | C36: ='R5K Details'!J34 -> 0 | D36: =VLOOKUP(A36,'2019'!C$3:H$225,6,FALSE) -> 61 | E36: 0 | F36: =VLOOKUP(A36,'2019'!C$3:H$225,5,FALSE) -> 165 | G36: 0
A37: R5KPD2A | B37: R5K Dual Patient Station | C37: ='R5K Details'!J35 -> 0 | D37: =VLOOKUP(A37,'2019'!C$3:H$225,6,FALSE) -> 59 | E37: 0 | F37: =VLOOKUP(A37,'2019'!C$3:H$225,5,FALSE) -> 177 | G37: 0
A38: R5KPS1A | B38: R5K Single Audio Patient Station | C38: ='R5K Details'!J36 -> 41 | D38: =VLOOKUP(A38,'2019'!C$3:H$225,6,FALSE) -> 44 | E38: 1804 | F38: =VLOOKUP(A38,'2019'!C$3:H$225,5,FALSE) -> 126 | G38: 5166
A39: R5KPS1V | B39: R5K Single Patient Visual Station | C39: ='R5K Details'!J37 -> 0 | D39: =VLOOKUP(A39,'2019'!C$3:H$225,6,FALSE) -> 35 | E39: 0 | F39: =VLOOKUP(A39,'2019'!C$3:H$225,5,FALSE) -> 105 | G39: 0
A40: R5KPS1LCA | B40: R5K Audio Single Patient Station with Lighting Control | C40: ='R5K Details'!J38 -> 0 | D40: =VLOOKUP(A40,'2019'!C$3:H$225,6,FALSE) -> 60 | E40: 0 | F40: =VLOOKUP(A40,'2019'!C$3:H$225,5,FALSE) -> 180 | G40: 0
A41: R5KSSTF | B41: R5K Staff Station | C41: ='R5K Details'!J39 -> 0 | D41: =VLOOKUP(A41,'2019'!C$3:H$225,6,FALSE) -> 37 | E41: 0 | F41: =VLOOKUP(A41,'2019'!C$3:H$225,5,FALSE) -> 111 | G41: 0
A42: R5KSDTY | B42: R5K Duty Station | C42: ='R5K Details'!J40 -> 0 | D42: =VLOOKUP(A42,'2019'!C$3:H$225,6,FALSE) -> 44 | E42: 0 | F42: =VLOOKUP(A42,'2019'!C$3:H$225,5,FALSE) -> 132 | G42: 0
A43: R4K15V | B43: SLIM 1/4" Jack / Button St | C43: ='R5K Details'!J48 -> 0 | D43: =VLOOKUP(A43,'2019'!C$3:H$225,6,FALSE) -> 41 | E43: 0 | F43: =VLOOKUP(A43,'2019'!C$3:H$225,5,FALSE) -> 123 | G43: 0
A44: R4K17V | B44: SLIM Enh Single Call St | C44: ='R5K Details'!J49 -> 0 | D44: =VLOOKUP(A44,'2019'!C$3:H$225,6,FALSE) -> 62 | E44: 0 | F44: =VLOOKUP(A44,'2019'!C$3:H$225,5,FALSE) -> 186 | G44: 0
A45: R4K11V | B45: Single Patient Station - Visual | C45: ='R5K Details'!J50 -> 0 | E45: 0 | G45: 0
A46: R4K12A | B46: Single Patient Station - Audio | C46: ='R5K Details'!J51 -> 0 | E46: =D46*C46 -> 0 | G46: 0
A47: R4K12AHZ | B47: Horizontal Single Patient Station - Audio | C47: ='R5K Details'!J52 -> 0 | E47: 0 | G47: 0
A48: R4K13VA | B48: Enhanced Single Patient Station - Audio | C48: ='R5K Details'!J53 -> 0 | E48: 0 | G48: 0
A49: R4K13VAHZ | B49: Horizontal Enh Single Patient Station - Audio | C49: ='R5K Details'!J54 -> 0 | E49: 0 | G49: 0
A50: R4K14SA | B50: Single Patient w/ Staff Emer | C50: ='R5K Details'!J55 -> 0 | E50: 0 | G50: 0
A51: R4K16LV | B51: Enhanced Single Patient Station - Visual | C51: ='R5K Details'!J56 -> 0 | E51: 0 | G51: 0
A52: R4K21V | B52: Dual Patient Station - Visual | C52: ='R5K Details'!J57 -> 0 | E52: 0 | G52: 0
A53: R4K22A | B53: Dual Patient Station - Audio | C53: ='R5K Details'!J58 -> 0 | E53: 0 | G53: 0
A54: R4K23VA | B54: Enhanced Dual Patient Station - Audio | C54: ='R5K Details'!J59 -> 0 | E54: 0 | G54: 0
A55: HSS400 | B55: High Security Audio Bed Station | C55: ='R5K Details'!J60 -> 0 | D55: =VLOOKUP(A55,'2019'!C$3:H$225,6,FALSE) -> 258 | E55: 0 | F55: =VLOOKUP(A55,'2019'!C$3:H$225,5,FALSE) -> 774 | G55: 0
A56: HSS401 | B56: High Security Staff Station | C56: ='R5K Details'!J61 -> 0 | D56: =VLOOKUP(A56,'2019'!C$3:H$225,6,FALSE) -> 258 | E56: 0 | F56: =VLOOKUP(A56,'2019'!C$3:H$225,5,FALSE) -> 774 | G56: 0
A57: HSS433 | B57: High Security Push Button Station | C57: ='R5K Details'!J62 -> 0 | D57: =VLOOKUP(A57,'2019'!C$3:H$225,6,FALSE) -> 258 | E57: 0 | F57: =VLOOKUP(A57,'2019'!C$3:H$225,5,FALSE) -> 774 | G57: 0
A58: R4KSS | B58: Staff Station | C58: ='R5K Details'!J63 -> 0 | E58: 0 | G58: 0
A59: R4KDY | B59: Duty Station | C59: ='R5K Details'!J64 -> 0 | E59: 0 | G59: 0
A60: R5KPB4 | B60: Responder 5K 4-button Station | C60: ='R5K Details'!J41 -> 0 | D60: =VLOOKUP(A60,'2019'!C$3:H$225,6,FALSE) -> 41 | E60: 0 | F60: =VLOOKUP(A60,'2019'!C$3:H$225,5,FALSE) -> 123 | G60: 0
A61: R5KPB4CNF | B61: Responder 5K 4-button Workflow and Registration Station | C61: ='R5K Details'!J42 -> 0 | D61: =VLOOKUP(A61,'2019'!C$3:H$225,6,FALSE) -> 38 | E61: 0 | F61: =VLOOKUP(A61,'2019'!C$3:H$225,5,FALSE) -> 123 | G61: =F61*C61 -> 0
A62: R5KPC11WP | B62: Waterproof Pullcord Station | C62: ='R5K Details'!J44 -> 0 | D62: =VLOOKUP(A62,'2019'!C$3:H$225,6,FALSE) -> 34 | E62: 0 | F62: =VLOOKUP(A62,'2019'!C$3:H$225,5,FALSE) -> 102 | G62: 0
A63: R5KPC11WPS | B63: Waterproof Pullcord Station - Spanish | C63: ='R5K Details'!J45 -> 18 | D63: =VLOOKUP(A63,'2019'!C$3:H$225,6,FALSE) -> 36 | E63: 648 | F63: =VLOOKUP(A63,'2019'!C$3:H$225,5,FALSE) -> 108 | G63: =F63*C63 -> 1944
A64: R5KPC11WPF | B64: Waterproof Pullcord Station - French | C64: ='R5K Details'!J46 -> 0 | D64: =VLOOKUP(A64,'2019'!C$3:H$225,6,FALSE) -> 36 | E64: 0 | F64: =VLOOKUP(A64,'2019'!C$3:H$225,5,FALSE) -> 108 | G64: =F64*C64 -> 0
A65: R5KPC11WPP | B65: Waterproof Pullcord Station - Portuguese | C65: ='R5K Details'!J47 -> 0 | D65: =VLOOKUP(A65,'2019'!C$3:H$225,6,FALSE) -> 36 | E65: 0 | F65: =VLOOKUP(A65,'2019'!C$3:H$225,5,FALSE) -> 108 | G65: =F65*C65 -> 0
A66: R4K2JACK | B66: SLIM Dual 1/4" Jack St | C66: ='R5K Details'!J65 -> 0 | D66: =VLOOKUP(A66,'2019'!C$3:H$225,6,FALSE) -> 45 | E66: 0 | F66: =VLOOKUP(A66,'2019'!C$3:H$225,5,FALSE) -> 135 | G66: 0
A67: R4KCB13 | B67: SLIM Code Button St | C67: ='R5K Details'!J66 -> 0 | D67: =VLOOKUP(A67,'2019'!C$3:H$225,6,FALSE) -> 34 | E67: 0 | F67: =VLOOKUP(A67,'2019'!C$3:H$225,5,FALSE) -> 102 | G67: 0
A68: R4KDTY2 | B68: SLIM Duty St w/ Speaker | C68: ='R5K Details'!J67 -> 0 | E68: 0 | G68: 0
A69: R4KPB12 | B69: SLIM Single Button St | C69: ='R5K Details'!J68 -> 0 | D69: =VLOOKUP(A69,'2019'!C$3:H$225,6,FALSE) -> 30 | E69: 0 | F69: =VLOOKUP(A69,'2019'!C$3:H$225,5,FALSE) -> 90 | G69: 0
A70: R4KPB23 | B70: SLIM Dual Button w/ Code St | C70: ='R5K Details'!J69 -> 0 | D70: =VLOOKUP(A70,'2019'!C$3:H$225,6,FALSE) -> 35 | E70: 0 | F70: =VLOOKUP(A70,'2019'!C$3:H$225,5,FALSE) -> 99 | G70: 0
A71: R4KPC11 | B71: SLIM Pull Cord St | C71: ='R5K Details'!J70 -> 0 | D71: =VLOOKUP(A71,'2019'!C$3:H$225,6,FALSE) -> 34 | E71: 0 | F71: =VLOOKUP(A71,'2019'!C$3:H$225,5,FALSE) -> 93 | G71: 0
A72: R4KSAR | B72: SLIM Dual Button St | C72: ='R5K Details'!J71 -> 12 | D72: =VLOOKUP(A72,'2019'!C$3:H$225,6,FALSE) -> 34 | E72: 408 | F72: =VLOOKUP(A72,'2019'!C$3:H$225,5,FALSE) -> 102 | G72: 1224
A73: R4KSPK | B73: SLIM Speaker Module | C73: ='R5K Details'!J72 -> 0 | D73: =VLOOKUP(A73,'2019'!C$3:H$225,6,FALSE) -> 16 | E73: 0 | F73: =VLOOKUP(A73,'2019'!C$3:H$225,5,FALSE) -> 45 | G73: 0
A74: R4KESR | B74: Emergency/Staff Registration Station | C74: ='R5K Details'!J73 -> 0 | E74: =D74*C74 -> 0 | G74: 0
A75: R4KCNCL | B75: Cancel Station | C75: ='R5K Details'!J74 -> 0 | E75: 0 | G75: 0
A76: R4KCB12 | B76: Code Blue Station | C76: ='R5K Details'!J75 -> 0 | E76: 0 | G76: 0
A77: R4KPB11 | B77: Single Push Button -Push for Help | C77: ='R5K Details'!J76 -> 0 | E77: 0 | G77: 0
A78: R4KPC10 | B78: Pull Cord Station | C78: ='R5K Details'!J77 -> 0 | E78: 0 | G78: 0
A79: R4KPB22 | B79: Dual Push Button Station | C79: ='R5K Details'!J78 -> 0 | E79: 0 | G79: 0
A80: R4KPB44 | B80: Four Button Status Station | C80: ='R5K Details'!J79 -> 0 | E80: 0 | G80: 0
A81: R4KSR1 | B81: Staff Register Station | C81: ='R5K Details'!J80 -> 0 | E81: 0 | G81: 0
A82: R5KCANCEL | B82: Cancel Station | C82: ='R5K Details'!J43 -> 0 | D82: =VLOOKUP(A82,'2019'!C$3:H$225,6,FALSE) -> 34 | E82: 0 | F82: =VLOOKUP(A82,'2019'!C$3:H$225,5,FALSE) -> 102 | G82: 0
A83: R4KFAM | B83: Fire/Auxiliary Module | C83: ='R5K Details'!J82 -> 0 | D83: =VLOOKUP(A83,'2019'!C$3:H$225,6,FALSE) -> 39 | E83: 0 | F83: =VLOOKUP(A83,'2019'!C$3:H$225,5,FALSE) -> 117 | G83: =F83*C83 -> 0
A84: R4KCAL | B84: Call Assurance Light | C84: ='R5K Details'!J87 -> 0 | D84: =VLOOKUP(A84,'2019'!C$3:H$225,6,FALSE) -> 27 | E84: 0 | F84: =VLOOKUP(A84,'2019'!C$3:H$225,5,FALSE) -> 81 | G84: 0
A85: CLV122 | B85: Visual 2-Bulb Corridor Light | C85: ='R5K Details'!J100 -> 0 | G85: =F85*C85 -> 0
A86: CLV144 | B86: Visual 4-Bulb Corridor Light | C86: ='R5K Details'!J101 -> 0 | G86: 0
A87: DCV100 | B87: Visual Domeless Controller - 6 pt | C87: ='R5K Details'!J102 -> 0 | G87: 0
A88: DCV116 | B88: Visual Domeless Controller - 16 pt | C88: ='R5K Details'!J103 -> 0 | G88: 0
A89: CLA222 | B89: Audio 2-Bulb Corridor Light | C89: ='R5K Details'!J104 -> 0 | G89: 0
A90: CLA246 | B90: Audio 4-Bulb Corridor Light | C90: ='R5K Details'!J92 -> 0 | D90: =VLOOKUP(A90,'2019'!C$3:H$225,6,FALSE) -> 143 | E90: =D90*C90 -> 0 | F90: =VLOOKUP(A90,'2019'!C$3:H$225,5,FALSE) -> 429 | G90: 0
A91: CLA214D | B91: Audio 4-Bulb Duty Corridor Light | C91: ='R5K Details'!J106 -> 0 | G91: 0
A92: DCA200 | B92: Audio Domeless Controller - 6 pt | C92: ='R5K Details'!J107 -> 0 | G92: 0
A93: DCA214D | B93: Audio Duty Domeless Controller - 6 pt | C93: ='R5K Details'!J108 -> 0 | G93: 0
A94: DCA216 | B94: Audio Domeless Controller - 16 pt | C94: ='R5K Details'!J109 -> 0 | G94: 0
A95: CLAR46 | B95: Four Station Audio Relay Kit | C95: ='R5K Details'!J93 -> 0 | D95: =VLOOKUP(A95,'2019'!C$3:H$225,6,FALSE) -> 44 | E95: =D95*C95 -> 0 | F95: =VLOOKUP(A95,'2019'!C$3:H$225,5,FALSE) -> 132 | G95: 0
A96: R4KOUT4R | B96: Visual Relay Output Control | C96: ='R5K Details'!J111 -> 0 | G96: 0
A97: R4KOUT4S | B97: Audio Solid State Relay Output Control | C97: ='R5K Details'!J112 -> 0 | G97: 0
C103: Subtotal (R5K) | E103: =SUM(E9:E102) -> 6504 | G103: =SUM(G9:G102) -> 19143
A106: Software
A108: Model # | B108: Description | C108: Quantity | D108: Dist Net | E108: Extended Price | F108: List Price | G108: Extended List Price
A110: R5KMRPT | B110: Reporting Software License (1 per system) | C110: ='R5K Details'!J16 -> 0 | D110: =VLOOKUP(A110,'2019'!C$3:H$225,6,FALSE) -> 3210 | E110: =D110*C110 -> 0 | F110: =VLOOKUP(A110,'2019'!C$3:H$225,5,FALSE) -> 9000 | G110: =F110*C110 -> 0
A111: R5KMADT | B111: ADT Integration Software License (1 per system) | C111: ='R5K Details'!J17 -> 0 | D111: =VLOOKUP(A111,'2019'!C$3:H$225,6,FALSE) -> 1338 | E111: 0 | F111: =VLOOKUP(A111,'2019'!C$3:H$225,5,FALSE) -> 3750 | G111: =F111*C111 -> 0
A112: R5KMRSI | B112: Resident Safety Interface | C112: ='R5K Details'!J18 -> 0 | D112: =VLOOKUP(A112,'2019'!C$3:H$225,6,FALSE) -> 1000 | E112: 0 | F112: =VLOOKUP(A112,'2019'!C$3:H$225,5,FALSE) -> 3000 | G112: 0
A113: 355005 | B113: Responder SIP Server (1 per System) | C113: ='R5K Details'!J21 -> 0 | D113: =VLOOKUP(A113,'2019'!C$3:H$225,6,FALSE) -> 1650 | E113: 0 | F113: =VLOOKUP(A113,'2019'!C$3:H$225,5,FALSE) -> 4125 | G113: 0
A114: R5KMSIP | B114: SIP Telephony Software License (1 per system) | C114: ='R5K Details'!J19 -> 0 | D114: =VLOOKUP(A114,'2019'!C$3:H$225,6,FALSE) -> 1846 | E114: 0 | F114: =VLOOKUP(A114,'2019'!C$3:H$225,5,FALSE) -> 5175 | G114: =F114*C114 -> 0
A115: R5KMMWI | B115: Middleware Interface | C115: ='R5K Details'!J20 -> 0 | D115: =VLOOKUP(A115,'2019'!C$3:H$225,6,FALSE) -> 1667 | E115: 0 | F115: =VLOOKUP(A115,'2019'!C$3:H$225,5,FALSE) -> 5000 | G115: 0
C116: Subtotal (Software) | E116: =SUM(E110:E113) -> 0 | G116: =SUM(G110:G112) -> 0
E117: SMA | F117: =E113*0.15 -> 0
A118: Accessories
A120: Model # | B120: Description | C120: Quantity | D120: Price | E120: Extended Price | F120: List Price | G120: Extended List Price
A122: 350018 | B122: 8pin Inlinecon Cat-5 Cat-6(100) (Not to be used with R4K CL/DC) | C122: ='R5K Details'!J114 -> 2 | D122: =VLOOKUP(A122,'2019'!C$3:H$225,6,FALSE) -> 135 | E122: =D122*C122 -> 270 | F122: =VLOOKUP(A122,'2019'!C$3:H$225,5,FALSE) -> 337.5 | G122: =F122*C122 -> 675 | H122: # of R4K CL/DC
A123: 350006 | B123: Crimping tool Adapter | C123: ='R5K Details'!J117 -> 0 | D123: =VLOOKUP(A123,'2019'!C$3:H$225,6,FALSE) -> 33 | E123: 0 | F123: =VLOOKUP(A123,'2019'!C$3:H$225,5,FALSE) -> 82.5 | G123: =F123*C123 -> 0 | H123: =SUM('R5K Details'!J100:J109) -> 0
A124: R4KCONN6 | B124: 6-Pin connectors (Bag of 100) | C124: ='R5K Details'!J115 -> 0 | D124: =VLOOKUP(A124,'2019'!C$3:H$225,6,FALSE) -> 162 | E124: 0 | F124: =VLOOKUP(A124,'2019'!C$3:H$225,5,FALSE) -> 486 | G124: 0
A125: R4KCONN8 | B125: 8-Pin connectors (Bag of 100) | C125: ='R5K Details'!J116 -> 0 | G125: 0
A126: R4KCRIMP | B126: Responder 4000 Crimp Tool | C126: ='R5K Details'!J119 -> 0 | D126: =VLOOKUP(A126,'2019'!C$3:H$225,6,FALSE) -> 20 | E126: =D126*C126 -> 0 | F126: =VLOOKUP(A126,'2019'!C$3:H$225,5,FALSE) -> 60 | G126: 0
A127: R4KSTAC | B127: R4K Test Adapter Cables | C127: ='R5K Details'!J120 -> 0 | D127: =VLOOKUP(A127,'2019'!C$3:H$225,6,FALSE) -> 43 | E127: 0 | F127: =VLOOKUP(A127,'2019'!C$3:H$225,5,FALSE) -> 129 | G127: =F127*C127 -> 0
A128: 350007 | B128: Station Removal Tool | C128: ='R5K Details'!J118 -> 0 | D128: =VLOOKUP(A128,'2019'!C$3:H$225,6,FALSE) -> 16 | E128: 0 | F128: =VLOOKUP(A128,'2019'!C$3:H$225,5,FALSE) -> 40 | G128: 0
A129: R4KKBS | B129: K-Bus Splitter | C129: ='R5K Details'!J121 -> 0 | D129: =VLOOKUP(A129,'2019'!C$3:H$225,6,FALSE) -> 14 | E129: 0 | F129: =VLOOKUP(A129,'2019'!C$3:H$225,5,FALSE) -> 42 | G129: 0
A130: R4KKBSP | B130: K-Bus Splitter w/ Power | C130: ='R5K Details'!J122 -> 0 | D130: =VLOOKUP(A130,'2019'!C$3:H$225,6,FALSE) -> 18 | E130: 0 | F130: =VLOOKUP(A130,'2019'!C$3:H$225,5,FALSE) -> 48 | G130: 0
A131: R4KFB1 | B131: Feature Bed Interface | C131: ='R5K Details'!J81 -> 0 | D131: =VLOOKUP(A131,'2019'!C$3:H$225,6,FALSE) -> 44 | E131: 0 | F131: =VLOOKUP(A131,'2019'!C$3:H$225,5,FALSE) -> 132 | G131: 0
A132: R4KSLC1 | B132: Single Light Control Module | C132: ='R5K Details'!J82 -> 0 | D132: =VLOOKUP(A132,'2019'!C$3:H$225,6,FALSE) -> 27 | E132: 0 | F132: =VLOOKUP(A132,'2019'!C$3:H$225,5,FALSE) -> 81 | G132: 0
A133: R4KDLC2 | B133: Dual Light Control Module | C133: ='R5K Details'!J83 -> 0 | D133: =VLOOKUP(A133,'2019'!C$3:H$225,6,FALSE) -> 45 | E133: 0 | F133: =VLOOKUP(A133,'2019'!C$3:H$225,5,FALSE) -> 135 | G133: 0
A134: R4KTVA | B134: TV Adapter pigtail kit (Set of 10) | C134: ='R5K Details'!J84 -> 0 | D134: =VLOOKUP(A134,'2019'!C$3:H$225,6,FALSE) -> 14 | E134: 0 | F134: =VLOOKUP(A134,'2019'!C$3:H$225,5,FALSE) -> 42 | G134: 0
A135: R4KTVR1 | B135: Digital TV Isolation Module | C135: ='R5K Details'!J85 -> 0 | D135: =VLOOKUP(A135,'2019'!C$3:H$225,6,FALSE) -> 18 | E135: 0 | F135: =VLOOKUP(A135,'2019'!C$3:H$225,5,FALSE) -> 54 | G135: 0
A136: NC4JACK | B136: 1/4" Jack Auxiliary Input Station | C136: ='R5K Details'!J138 -> 0 | D136: =VLOOKUP(A136,'2019'!C$3:H$225,6,FALSE) -> 78 | E136: 0 | F136: =VLOOKUP(A136,'2019'!C$3:H$225,5,FALSE) -> 195 | G136: 0
A137: NCBED | B137: 37-pin Feature Bed Receptacle | C137: ='R5K Details'!J139 -> 0 | D137: =VLOOKUP(A137,'2019'!C$3:H$225,6,FALSE) -> 58 | E137: 0 | F137: =VLOOKUP(A137,'2019'!C$3:H$225,5,FALSE) -> 145 | G137: 0
A138: NCC37 | B138: 37-pin Feature Bed Cable | C138: ='R5K Details'!J140 -> 0 | D138: =VLOOKUP(A138,'2019'!C$3:H$225,6,FALSE) -> 63 | E138: 0 | F138: =VLOOKUP(A138,'2019'!C$3:H$225,5,FALSE) -> 157.5 | G138: 0
A139: NCC37RA | B139: 37-pin Feature Bed Cable -Right Angle | C139: ='R5K Details'!J141 -> 0 | D139: =VLOOKUP(A139,'2019'!C$3:H$225,6,FALSE) -> 63 | E139: 0 | F139: =VLOOKUP(A139,'2019'!C$3:H$225,5,FALSE) -> 157.5 | G139: 0
A140: NCLV120 | B140: Low Voltage Lighting Control 120V | G140: 0
A141: 350008 | B141: Clear Station Cover (1 & 2 Button Stations) | C141: ='R5K Details'!J125 -> 0 | D141: =VLOOKUP(A141,'2019'!C$3:H$225,6,FALSE) -> 25 | E141: =D141*C141 -> 0 | F141: =VLOOKUP(A141,'2019'!C$3:H$225,5,FALSE) -> 62.5 | G141: 0
A142: 350026 | B142: R5 & R4K Single Gang Adapter Plates | C142: ='R5K Details'!J124 -> 0 | D142: =VLOOKUP(A142,'2019'!C$3:H$225,6,FALSE) -> 21 | E142: 0 | F142: =VLOOKUP(A142,'2019'!C$3:H$225,5,FALSE) -> 52.5 | G142: =F142*C142 -> 0
A143: 350027 | B143: Recessed 1-Gang Adapter Plates | C143: ='R5K Details'!J127 -> 0 | D143: =VLOOKUP(A143,'2019'!C$3:H$225,6,FALSE) -> 41 | E143: 0 | F143: =VLOOKUP(A143,'2019'!C$3:H$225,5,FALSE) -> 102.5 | G143: 0
A144: 350028 | B144: Recessed 2-Gang Adapter Plates | C144: ='R5K Details'!J127 -> 0 | D144: =VLOOKUP(A144,'2019'!C$3:H$225,6,FALSE) -> 46 | E144: 0 | F144: =VLOOKUP(A144,'2019'!C$3:H$225,5,FALSE) -> 115 | G144: 0
A145: R4KWM22 | B145: Wall Mount Kit for Annunciate Panel | C145: ='R5K Details'!J30 -> 0 | D145: =VLOOKUP(A145,'2019'!C$3:H$225,6,FALSE) -> 81 | E145: 0 | F145: =VLOOKUP(A145,'2019'!C$3:H$225,5,FALSE) -> 243 | G145: 0
A146: R4KDM22 | B146: Desk Mount Kit | C146: ='R5K Details'!J31 -> 0 | D146: =VLOOKUP(A146,'2019'!C$3:H$225,6,FALSE) -> 63 | E146: 0 | F146: =VLOOKUP(A146,'2019'!C$3:H$225,5,FALSE) -> 189 | G146: 0
A147: R4KHVK | B147: R4K 250v Kit For NC2828 | G147: =F147*C147 -> 0
A148: CLS103 | B148: 3 Lamp High Security Dome Lite | C148: ='R5K Details'!J128 -> 0 | D148: =VLOOKUP(A148,'2019'!C$3:H$225,6,FALSE) -> 92 | E148: =D148*C148 -> 0 | F148: =VLOOKUP(A148,'2019'!C$3:H$225,5,FALSE) -> 276 | G148: =F148*C148 -> 0
A149: R5KPADP | B149: R5K Adapter Plates (10) | C149: ='R5K Details'!J123 -> 0 | D149: =VLOOKUP(A149,'2019'!C$3:H$225,6,FALSE) -> 37 | E149: 0 | F149: =VLOOKUP(A149,'2019'!C$3:H$225,5,FALSE) -> 111 | G149: =F149*C149 -> 0
C154: Subtotal (Accessories) | E154: =SUM(E122:E141,E143:E153) -> 270 | G154: =SUM(G122:G153) -> 675
A158: =A1 -> Responder 5000 Nurse Call System
A159: Bill of Materials - page 2 of 2
E160: Project Name: | F160: Project Name
E161: Date: | F161: =TODAY() -> 2022-12-27
A163: Pillow Speakers/Call Cords
A165: Model # | B165: Description | C165: Quantity | D165: Price | E165: Total | F165: List Price | G165: Extended List Price
A167: NCPSDSL2 | B167: Digital Pillow Speaker, 2 Lts | C167: ='R5K Details'!J130 -> 0 | D167: =VLOOKUP(A167,'2019'!C$3:H$225,6,FALSE) -> 110 | E167: =D167*C167 -> 0 | F167: =VLOOKUP(A167,'2019'!C$3:H$225,5,FALSE) -> 330 | G167: =F167*C167 -> 0
A168: NCPSDSTV | B168: Digital Pillow Speaker, TV | C168: ='R5K Details'!J131 -> 0 | D168: =VLOOKUP(A168,'2019'!C$3:H$225,6,FALSE) -> 110 | E168: 0 | F168: =VLOOKUP(A168,'2019'!C$3:H$225,5,FALSE) -> 330 | G168: =F168*C168 -> 0
A169: NCPSKPL2 | B169: Direct Access Digital PS, 2 Lt | C169: ='R5K Details'!J132 -> 0 | D169: =VLOOKUP(A169,'2019'!C$3:H$225,6,FALSE) -> 115 | E169: 0 | F169: =VLOOKUP(A169,'2019'!C$3:H$225,5,FALSE) -> 345 | G169: 0
A170: NCPSKPTV | B170: Direct Access Digital PS, TV | C170: ='R5K Details'!J133 -> 0 | D170: =VLOOKUP(A170,'2019'!C$3:H$225,6,FALSE) -> 115 | E170: 0 | F170: =VLOOKUP(A170,'2019'!C$3:H$225,5,FALSE) -> 345 | G170: 0
A171: NCSAV | B171: DIN Cord Saver | C171: ='R5K Details'!J134 -> 0 | D171: =VLOOKUP(A171,'2019'!C$3:H$225,6,FALSE) -> 17 | E171: 0 | F171: =VLOOKUP(A171,'2019'!C$3:H$225,5,FALSE) -> 42.5 | G171: 0
A172: CCDIN3 | B172: Handheld Pendent - 2 Lights (8-pin DIN) | C172: ='R5K Details'!J135 -> 0 | D172: =VLOOKUP(A172,'2019'!C$3:H$225,6,FALSE) -> 47 | E172: 0 | F172: =VLOOKUP(A172,'2019'!C$3:H$225,5,FALSE) -> 117.5 | G172: 0
A173: CCDIN | B173: Call Cord - Single w/ Clip (10 ft.) | C173: ='R5K Details'!J136 -> 41 | D173: =VLOOKUP(A173,'2019'!C$3:H$225,6,FALSE) -> 22 | E173: 902 | F173: =VLOOKUP(A173,'2019'!C$3:H$225,5,FALSE) -> 55 | G173: 2255
A174: CC200 | B174: Call Cord - 1/4" Jack Call Cord w/ Clip (10ft.) | C174: ='R5K Details'!J137 -> 0 | D174: =VLOOKUP(A174,'2019'!C$3:H$225,6,FALSE) -> 18 | E174: 0 | F174: =VLOOKUP(A174,'2019'!C$3:H$225,5,FALSE) -> 45 | G174: 0
C175: Subtotal (PS/CC) | E175: =SUM(E167:E174) -> 902 | G175: =SUM(G167:G174) -> 2255
A176: Other
A178: Model # | B178: Description | C178: Quantity | D178: Price | E178: Total | F178: List Price | G178: Extended List Price
A180: =IF('R5K Details'!B148="","",'R5K Details'!B148) -> STG | B180: =IF('R5K Details'!B148="","",'R5K Details'!E148) -> WaveWare SIP to Tap Gateway | C180: ='R5K Details'!J148 -> 1 | D180: http://wirelessmessaging.com/ | E180: http://wirelessmessaging.com/ | F180: http://wirelessmessaging.com/ | G180: http://wirelessmessaging.com/
A181: =IF('R5K Details'!B149="","",'R5K Details'!B149) -> SPS-5V9E | B181: =IF('R5K Details'!B149="","",'R5K Details'!E149) -> WaveWare Paging Transmitter for STG, 5W, Site Licensing | C181: ='R5K Details'!J149 -> 1 | D181: http://wirelessmessaging.com/ | E181: http://wirelessmessaging.com/ | F181: http://wirelessmessaging.com/ | G181: http://wirelessmessaging.com/
A182: =IF('R5K Details'!B150="","",'R5K Details'!B150) -> 0250-1250 | B182: =IF('R5K Details'!B150="","",IF('R5K Details'!A150<>"Rauland",'R5K Details'!E150,"")) -> WaveWare Responder 5000 Messaging Server | C182: ='R5K Details'!J150 -> 0 | D182: http://wirelessmessaging.com/ | E182: http://wirelessmessaging.com/ | F182: http://wirelessmessaging.com/ | G182: http://wirelessmessaging.com/
A183: =IF('R5K Details'!B151="","",'R5K Details'!B151) -> 0250-1003 | B183: =IF('R5K Details'!B151="","",IF('R5K Details'!A151<>"Rauland",'R5K Details'!E151,"")) -> WaveWare 10 User Account Bundle (app licenses) | C183: ='R5K Details'!J151 -> 0 | D183: http://wirelessmessaging.com/ | E183: http://wirelessmessaging.com/ | F183: http://wirelessmessaging.com/ | G183: http://wirelessmessaging.com/
A184: =IF('R5K Details'!B152="","",'R5K Details'!B152) ->  | B184: =IF('R5K Details'!B152="","",'R5K Details'!E152) ->  | C184: ='R5K Details'!J152 -> 0 | D184: =IF(F184="FQ","FQ",F184*F$4) -> 0 | E184: =IF(D184="FQ","FQ",(C184*D184)) -> 0 | F184: =IF('R5K Details'!A152<>"Rauland",'R5K Details'!K152,VLOOKUP(A184,'2019'!#REF!,5,FALSE)) -> 0 | G184: =IF(F184="FQ","FQ",F184*C184) -> 0
A185: =IF('R5K Details'!B153="","",'R5K Details'!B153) ->  | B185: =IF('R5K Details'!B153="","",'R5K Details'!E153) ->  | C185: ='R5K Details'!J153 -> 0 | D185: 0 | E185: 0 | F185: =IF('R5K Details'!A153<>"Rauland",'R5K Details'!K153,VLOOKUP(A185,'2019'!#REF!,5,FALSE)) -> 0 | G185: =IF(F185="FQ","FQ",F185*C185) -> 0
A186: =IF('R5K Details'!B154="","",'R5K Details'!B154) ->  | B186: =IF('R5K Details'!B154="","",'R5K Details'!E154) ->  | C186: ='R5K Details'!J154 -> 0 | D186: 0 | E186: 0 | F186: =IF('R5K Details'!A154<>"Rauland",'R5K Details'!K154,VLOOKUP(A186,'2019'!#REF!,5,FALSE)) -> 0 | G186: 0
A187: =IF('R5K Details'!B155="","",'R5K Details'!B155) ->  | B187: =IF('R5K Details'!B155="","",'R5K Details'!E155) ->  | C187: ='R5K Details'!J155 -> 0 | D187: 0 | E187: 0 | F187: =IF('R5K Details'!A155<>"Rauland",'R5K Details'!K155,VLOOKUP(A187,'2019'!#REF!,5,FALSE)) -> 0 | G187: 0
G188: 0
B189: Subtotal (Other) | E189: =SUM(E180:E188) -> 0 | F189: list total | G189: =SUM(G180:G188) -> 0
A191: Bio-Seals
A193: Model # | B193: Description | C193: Quantity | D193: Price | E193: Extended Price | F193: List Price | G193: Extended List Price
A195: 350011 | B195: Bio-seals - Cancel Button (10) | C195: ='R5K Details'!J145 -> 0 | D195: =VLOOKUP(A195,'2019'!C$3:H$225,6,FALSE) -> 11 | E195: =D195*C195 -> 0 | F195: =VLOOKUP(A195,'2019'!C$3:H$225,5,FALSE) -> 27.5 | G195: =F195*C195 -> 0
A196: 350012 | B196: Bio-seals- Small Push-Button (10) | C196: ='R5K Details'!J146 -> 0 | D196: =VLOOKUP(A196,'2019'!C$3:H$225,6,FALSE) -> 11 | E196: 0 | F196: =VLOOKUP(A196,'2019'!C$3:H$225,5,FALSE) -> 27.5 | G196: =F196*C196 -> 0
A197: 350013 | B197: Bio-seals- Large Push-Button (10) | C197: ='R5K Details'!J147 -> 0 | D197: =VLOOKUP(A197,'2019'!C$3:H$225,6,FALSE) -> 15 | E197: 0 | F197: =VLOOKUP(A197,'2019'!C$3:H$225,5,FALSE) -> 37.5 | G197: 0
A198: 350014 | B198: Bio-seals- Left side Pt Stn (10) | D198: =VLOOKUP(A198,'2019'!C$3:H$225,6,FALSE) -> 17 | E198: 0 | F198: =VLOOKUP(A198,'2019'!C$3:H$225,5,FALSE) -> 42.5 | G198: 0
A199: 350015 | B199: Bio-seals- Right side Pt.Stn (10) | D199: =VLOOKUP(A199,'2019'!C$3:H$225,6,FALSE) -> 17 | E199: 0 | F199: =VLOOKUP(A199,'2019'!C$3:H$225,5,FALSE) -> 42.5 | G199: 0
A200: 350400 | B200: Bio-seals- Staff Terminal LCD (5) | D200: =VLOOKUP(A200,'2019'!C$3:H$225,6,FALSE) -> 21 | E200: 0 | F200: =VLOOKUP(A200,'2019'!C$3:H$225,5,FALSE) -> 52.5 | G200: 0
C201: Subtotal (Bio-Seal) | E201: =SUM(E195:E200) -> 0 | G201: =SUM(G195:G200) -> 0
A204: Labor/Cable
A206: Model # | B206: Description | C206: Quantity | D206: Price | E206: Extended Price | F206: List Price | G206: Extended List Price
B208: Cable | C208: cable hours | D208: ='R5K Details'!O181 -> 64 | F208: Total cable price | G208: =Labor_Installation!K6 -> 680
B209: labor | C209: R5K shop | D209: ='R5K Details'!O156 -> 0 | E209: R5K field labor | F209: ='R5K Details'!Q156 -> 61.2 | G209: =Labor_Installation!K7 -> 0
B210: misc | G210: =Labor_Installation!K8 -> 0
B211: Total R5K equipment dist net | G211: =E103+E116+E154+E175+E189+E201 -> 7676

Sheet Revision History
A1: Release Notes of AutoQuote Program
A2: Version | B2: Changes Included
A4: Version 1.50 | B4: 1. Allow a -1 to be entered for 355005.
A6: Version 1.49 | B6: 1. Corrected the distributor net for the MSIP.
A8: Version 1.48 | B8: 1. Corrected the autocalculation of the R5KL2KA.
A10: Version 1.47 | B10: 1. Corrected the input options for the Input for Auto Config tab.
A12: Version 1.46 | B12: 1. Corrected the auto calculation of R5KMRPT and R5KMSIP when other software modules included.
A14: Version 1.45 | B14: 1. Corrected the Order output for software modules.
A16: Version 1.44 | B16: 1. Added R5KMMWI Middleware Interface. This requires R5KMSIP.
B17: 2. Added R5KMRSI Resident Safety Interface. This requires R5KMRPT.
A19: Version 1.43 | B19: 1. Added R5KMADT ADT Integration Software License. This requires R5KMRPT.
A21: Version 1.42 | B21: 1. Description of SMA corrected
B22: 2. R5KCANCEL station added.
A24: Version 1.41 | B24: 1. Updated to 2019 pricing.
A26: Version 1.40 | B26: 1. Added R5KPB4CNF, R5KCANCEL and pull cord cut out for recessing.
A28: Version 1.39 | B28: 1. Updated MSC autocalulations to take number of consoles into account.
A30: Version 1.38 | B30: 1. Corrected the Order tab to show additional items.
B31: 2. Added the R5KMADT ADT Integration Software.
A33: Version 1.37 | B33: 1. Corrected Autocalculations when using the CLA246.
A35: Version 1.36 | B35: 1. Widened the totals. column on the Labor_Installation tab.
B36: 2. Corrected the totals section for the cabling.
A38: Version 1.35 | B38: 1. Corrected some pricing.
A40: Version 1.34 | B40: 1. Added WaterProof Pull Cord Stations.
B41: 2. Remove Low Volt Light Controllers.
A43: Version 1.33 | B43: 1. Please obtain a quotation from WaveWare for all WaveWare items.
A45: Version 1.31 | B45: 1. Corrected calculation of R5KL2KA
A47: Version 1.30 | B47: 1. Corrected R5KSDTY input from Auto Config tab.
A49: Version 1.29 | B49: 1. Corrected calculations of CLA246 and CLAR46.
A51: Version 1.28 | B51: 1. Added the CLA246 and CLAR46.
A53: Version 1.27 | B53: 1. Corrected Pricing of Other items
B54: 2. Changed format of dropdown boxes on Input for Auto Config tab
A56: Version 1.26 | B56: 1. Added the RNC
A58: Version 1.25 | B58: 1. Edited device names/descriptions to fit in columns better
A60: Version 1.24 | B60: 1. Corrected SIP Telephony Integration calculation.
B61: 2. Corrected number of servers needed for Reports and SIP Integration.
A63: Version 1.23 | B63: 1. Corrected distributor discount displayed on Order tab.
A65: Version 1.22 | B65: 1. Added the R5K Messaging App.
A67: Version 1.21 | B67: 1. Corrected calculation of 351102
B68: 2. Final prices loaded.
A70: Version 1.20 | B70: 1. Added the 351102 Head End Cabinet
A72: Version 1.19 | B72: 1. Corrected power calculations for L2KA.
A74: Version 1.18 | B74: 1. Shifted CL before stations in Order list
A76: Version 1.17 | B76: 1. Changed all connectors to 350018 except R4KFB1.
B77: 2. Power calculations of R5K devices corrected.
B78: 3. Corrected 350008 showing the CSC in order.
A80: Version 1.16 | B80: 1. Include Fiber Adapter
B81: 2. Correct Calculations of R5K Termination Board.
B82: 3. Include Fiber Adapters
B83: 4. correct cables pricing and calculation area
B84: 5. Corrected cable calculation to be viewable. Corrected field labor calculations.
A87: Version 1.15 | B87: 1. Included R4KSTAC test cable.
A89: Version 1.14 | B89: 1. Corrected data validation and calculation of PA25.
A91: Version 1.13 | B91: 1. included R4KWM22 for Ann panel
A93: Version 1.12 | B93: 1. Corrected Server MSRP
B94: 2. Removed original R4K items
B95: 3. corrected MSC calculation
A97: Version 1.11 | B97: 1. Updated connector count for MQC, MST, R5CONS
B98: 2. Corrected MRPT and SDTY part numbers
A100: Version 1.10 | B100: 1. Added R4K single adapter plates
A103: Version 1.9 | B103: 1. Corrected L2KA calculations.
B104: 2. Corrected SMA fee to just RSS.
A106: Version 1.8 | B106: 1. Corrected pricing calculations
A108: Version 1.7 | B108: 1. Updated pricing.
B109: 2. Updated server specs to reference correct document.
A111: Version 1.6 | B111: 1. Corrected calculations of SIP server, PA25, WaveWare STG
A113: Version 1.5 | B113: 1. Edited macros.
B114: 1. Corrected MSC calculations with MQC and loading.
A116: Version 1.4 | B116: 1. Corrected Additional item calculation
A118: Version 1.3 | B118: 1. Added Responder SIP Server
B119: 2. Updated Order for SIP Server and Additional Items.
A121: Version 1.2 | B121: 1. Updated connector count.

Sheet 2019
A1: THIS DOCUMENT IS FOR INTERNAL USE ONLY. DO NOT DISTRIBUTE | I1: discount multiplier
A2: Pricelist | G2: List | H2: Dist net Int
C3: 301103 | D3: Responder Wireless Wall Unit | E3: 60 | G3: 340 | H3: 136 | I3: 0.4
A4: HC | C4: 301200 | D4: Wireless Bed Unit-socket (hr) | E4: 60 | G4: 362.5 | H4: 145 | I4: 0.4
A5: HC | C5: 301210 | D5: Wb Unit-plug (stryker) | E5: 60 | G5: 362.5 | H5: 145 | I5: 0.4
A6: HC | C6: 301300 | D6: Wireless Bed Demo Kit-stryker | E6: 12 | G6: 1030 | H6: 412 | I6: 0.4
A7: HC | C7: 350000 | D7: Demonstration Unit | E7: 12 | G7: 34420 | H7: 13768 | I7: 0.4
A8: HC | C8: 350002 | D8: L-net T-tap Module (25) | E8: 18 | G8: 642.5 | H8: 257 | I8: 0.4
A9: HC | C9: 350003 | D9: L-net Term Resistor (10) | E9: 18 | G9: 540 | H9: 216 | I9: 0.4
A10: HC | C10: 350004 | D10: L-net Hub | E10: 18 | G10: 297.5 | H10: 119 | I10: 0.4
A11: HC | C11: 350005 | D11: M-net Divider Interface | E11: 18 | G11: 65 | H11: 26 | I11: 0.4
A12: HC | C12: 350006 | D12: Crimping Tool Adapter | E12: 12 | G12: 82.5 | H12: 33 | I12: 0.4
A13: HC | C13: 350007 | D13: Station Removal Tool | E13: 12 | G13: 40 | H13: 16 | I13: 0.4
A14: HC | C14: 350008 | D14: Clear Station Cover | E14: 18 | G14: 62.5 | H14: 25 | I14: 0.4
A15: HC | C15: 350009 | D15: 351003 Battery Kit | E15: 18 | G15: 110 | H15: 44 | I15: 0.4
A16: HC | C16: 350011 | D16: Overlay Kit Cancel Button (10) | E16: 18 | G16: 27.5 | H16: 11 | I16: 0.4
A17: HC | C17: 350012 | D17: Overlay Kit Sm Push Button(10) | E17: 18 | G17: 27.5 | H17: 11 | I17: 0.4
A18: HC | C18: 350013 | D18: Overlay Kit Lg Push Button(10) | E18: 18 | G18: 37.5 | H18: 15 | I18: 0.4
A19: HC | C19: 350014 | D19: Overlay Kit Left Side Stn (10) | E19: 18 | G19: 42.5 | H19: 17 | I19: 0.4
A20: HC | C20: 350015 | D20: Overlay Kit Right Side Stn(10) | E20: 18 | G20: 42.5 | H20: 17 | I20: 0.4
A21: HC | C21: 350017 | D21: L-net T-tap Insulator (25) | E21: 18 | G21: 52.5 | H21: 21 | I21: 0.4
A22: HC | C22: 350018 | D22: 8pn Inlinecon Cat-5 Cat-6(100) | E22: 18 | G22: 337.5 | H22: 135 | I22: 0.4
A23: HC | C23: 350019 | D23: Responder 5 L-net Test Adapter | E23: 18 | G23: 70 | H23: 28 | I23: 0.4
A24: HC | C24: 350022 | D24: Clear Button Cover For 353001 | E24: 18 | G24: 42.5 | H24: 17 | I24: 0.4
A25: HC | C25: 350023 | D25: Clear Button Cover-4 Button S | E25: 18 | G25: 65 | H25: 26 | I25: 0.4
A26: HC | C26: 350024 | D26: Pillow Spker Cord Grip Kit 20 | E26: 18 | G26: 82.5 | H26: 33 | I26: 0.4
A27: HC | C27: 350025 | D27: 3-gang Adapter Plates (10) | E27: 18 | G27: 77.5 | H27: 31 | I27: 0.4
A28: HC | C28: 350026 | D28: 1-gang Adapter Plates (10) | E28: 18 | G28: 52.5 | H28: 21 | I28: 0.4
A29: HC | C29: 350027 | D29: Recessed 1-gang Plate 10 Pack | E29: 60 | G29: 102.5 | H29: 41 | I29: 0.4
A30: HC | C30: 350028 | D30: Recessed 2-gang Plate 10 Pack | E30: 60 | G30: 115 | H30: 46 | I30: 0.4
A31: HC | C31: 350032 | D31: R5demo Upgrade Kit | E31: 60 | G31: 9500 | H31: 3800 | I31: 0.4
A32: HC | C32: 350100 | D32: Call Cord W/tilt Release Din | E32: 24 | G32: 80 | H32: 32 | I32: 0.4
A33: HC | C33: 350200 | D33: Enhncd Pillow Spkr-tv-digi Vol | E33: 24 | G33: 312.5 | H33: 125 | I33: 0.4
A34: HC | C34: 350201 | D34: Enhncd Pillowspkr-1lgt-digivol | E34: 24 | G34: 312.5 | H34: 125 | I34: 0.4
A35: HC | C35: 350202 | D35: Enhncd Pillowspkr-2lgt-digivol | E35: 24 | G35: 312.5 | H35: 125 | I35: 0.4
A36: HC | C36: 350205 | D36: Enhncd Pillow Spkr-tv-anlgvol | E36: 24 | G36: 312.5 | H36: 125 | I36: 0.4
A37: HC | C37: 350206 | D37: Enhanced Pillow Spkr 1 Light | E37: 24 | G37: 312.5 | H37: 125 | I37: 0.4
A38: HC | C38: 350207 | D38: Enhncd Pillowspkr 2 Lgt-anlgvo | E38: 24 | G38: 312.5 | H38: 125 | I38: 0.4
A39: HC | C39: 350220 | D39: Std Pillow Spkr-tv-digi Vol | E39: 24 | G39: 312.5 | H39: 125 | I39: 0.4
A40: HC | C40: 350221 | D40: Std Pillow Spkr-1 Lgt-digi Vol | E40: 24 | G40: 312.5 | H40: 125 | I40: 0.4
A41: HC | C41: 350222 | D41: Std Pillowspkr-2 Lgt-digi Vol | E41: 24 | G41: 312.5 | H41: 125 | I41: 0.4
A42: HC | C42: 350225 | D42: Std Pillow Spkr-tv-anlg Vol | E42: 24 | G42: 312.5 | H42: 125 | I42: 0.4
A43: HC | C43: 350226 | D43: Std Pillowspkr-1 Lgt-anlg Vol | E43: 24 | G43: 312.5 | H43: 125 | I43: 0.4
A44: HC | C44: 350227 | D44: Std Pillowspkr-2 Lgt-anlg Vol\ | E44: 24 | G44: 312.5 | H44: 125 | I44: 0.4
A45: HC | C45: 350240 | D45: Basic Pillow Speaker-tv | E45: 24 | G45: 212.5 | H45: 85 | I45: 0.4
A46: HC | C46: 350241 | D46: Basic Pillow Speaker-1 Light | E46: 24 | G46: 195 | H46: 78 | I46: 0.4
A47: HC | C47: 350242 | D47: Basic Pillow Speaker-2 Lights | E47: 24 | G47: 212.5 | H47: 85 | I47: 0.4
A48: HC | C48: 350300 | D48: Remote Tilt Release Din Stn | E48: 60 | G48: 205 | H48: 82 | I48: 0.4
A49: HC | C49: 350301 | D49: Remote Std 8-pin Din Station | E49: 60 | G49: 220 | H49: 88 | I49: 0.4
A50: HC | C50: 350302 | D50: Feature Bed Control Module | E50: 60 | G50: 187.5 | H50: 75 | I50: 0.4
A51: HC | C51: 350400 | D51: Staff Term Faceplate W Bioseal | E51: 60 | G51: 52.5 | H51: 21 | I51: 0.4
A52: HC | C52: 351001 | D52: Branch Regional Controller V2 | E52: 60 | G52: 1797.5 | H52: 719 | I52: 0.4
A53: HC | C53: 351002 | D53: Responder Ntwrk Adapter Module | E53: 60 | G53: 11572.5 | H53: 4629 | I53: 0.4
A54: HC | C54: 351003 | D54: Power Supply W/batt. Backup | E54: 60 | G54: 1305 | H54: 522 | I54: 0.4
A55: HC | C55: 351004 | D55: 8 Port Ethernet Switch W/poe | E55: 60 | G55: 1145 | H55: 458 | I55: 0.4
A56: HC | C56: 351006 | D56: Fiber Optic Adapter Module | E56: 60 | G56: 510 | H56: 204 | I56: 0.4
A57: HC | C57: 351010 | D57: Responder Network Concentrator | E57: 60 | G57: 12107.5 | H57: 4843 | I57: 0.4
A58: HC | C58: 351101 | D58: Rack Mount Kit For Switches | E58: 60 | G58: 110 | H58: 44 | I58: 0.4
A59: HC | C59: 351102 | D59: Wall Mounting Cabinet-head-end | E59: 60 | G59: 1145 | H59: 458 | I59: 0.4
A60: HC | C60: 351201 | D60: Console Receptacle | E60: 60 | G60: 92.5 | H60: 37 | I60: 0.4
A61: HC | C61: 351203 | D61: Console Desk Stand | E61: 60 | G61: 157.5 | H61: 63 | I61: 0.4
A62: HC | C62: 351205 | D62: Voip Nurse Console V2 | E62: 60 | G62: 2082.5 | H62: 833 | I62: 0.4
A63: HC | C63: 351310 | D63: Voip Staff Terminal V2 | E63: 60 | G63: 1627.5 | H63: 651 | I63: 0.4
A64: HC | C64: 352004 | D64: Mini-corridor Light | E64: 60 | G64: 167.5 | H64: 67 | I64: 0.4
A65: HC | C65: 352010 | D65: Corridor Light-4 Pos V2 | E65: 60 | G65: 617.5 | H65: 247 | I65: 0.4
A66: HC | C66: 352021 | D66: Domeless Controller V2 | E66: 60 | G66: 612.5 | H66: 245 | I66: 0.4
A67: HC | C67: 353000 | D67: Single Patient Station | E67: 60 | G67: 555 | H67: 222 | I67: 0.4
A68: HC | C68: 353001 | D68: Enhanced Single Patient Stn | E68: 60 | G68: 617.5 | H68: 247 | I68: 0.4
A69: HC | C69: 353010 | D69: Dual Patient Station | E69: 60 | G69: 655 | H69: 262 | I69: 0.4
A70: HC | C70: 353100 | D70: Duty Station | E70: 60 | G70: 547.5 | H70: 219 | I70: 0.4
A71: HC | C71: 353101 | D71: Staff Station | E71: 60 | G71: 515 | H71: 206 | I71: 0.4
A72: HC | C72: 353200 | D72: Remote Audio Output Station | E72: 60 | G72: 405 | H72: 162 | I72: 0.4
A73: HC | C73: 353201 | D73: Remote Audio Output Module | E73: 60 | G73: 315 | H73: 126 | I73: 0.4
A74: HC | C74: 354000 | D74: Pull-cord Station With Audio | E74: 60 | G74: 362.5 | H74: 145 | I74: 0.4
A75: HC | C75: 354001 | D75: Pull-cord Station | E75: 60 | G75: 160 | H75: 64 | I75: 0.4
A76: HC | C76: 354010 | D76: Cancel Station | E76: 60 | G76: 172.5 | H76: 69 | I76: 0.4
A77: HC | C77: 354011 | D77: Code Station | E77: 60 | G77: 172.5 | H77: 69 | I77: 0.4
A78: HC | C78: 354012 | D78: Staff Assist Station | E78: 60 | G78: 172.5 | H78: 69 | I78: 0.4
A79: HC | C79: 354015 | D79: Staff Assist / Code Station | E79: 60 | G79: 177.5 | H79: 71 | I79: 0.4
A80: HC | C80: 354016 | D80: Bed Management Station | E80: 60 | G80: 227.5 | H80: 91 | I80: 0.4
A81: HC | C81: 354017 | D81: Staff Registration Station | E81: 60 | G81: 227.5 | H81: 91 | I81: 0.4
A82: HC | C82: 354018 | D82: 2-jack Station | E82: 60 | G82: 205 | H82: 82 | I82: 0.4
A83: HC | C83: 354100 | D83: Input Module - 2 Point | E83: 60 | G83: 170 | H83: 68 | I83: 0.4
A84: HC | C84: 354101 | D84: Output Module-high Current | E84: 60 | G84: 235 | H84: 94 | I84: 0.4
A85: HC | C85: 354102 | D85: Output Module-dry Contact | E85: 60 | G85: 185 | H85: 74 | I85: 0.4
A86: HC | C86: 354103 | D86: Output Module-low Current | E86: 60 | G86: 187.5 | H86: 75 | I86: 0.4
A87: HC | C87: 355000 | D87: R5ware Firmware Diagnostics | E87: 12 | G87: 0 | H87: 0 | I87: 0.4
A88: HC | C88: 355002 | D88: Interface-telephone-25 Beds | E88: 12 | G88: 2317.5 | H88: 927 | I88: 0.4
A89: HC | C89: 355005 | D89: Responder Sip Server | E89: 12 | G89: 4125 | H89: 1650 | I89: 0.4
A90: HC | C90: 356000 | D90: Responder 5 Demo Laptop | E90: 12 | G90: 8812.5 | H90: 3525 | I90: 0.4
A91: HC | C91: 366102 | D91: Pc Console (r5 Apps) - 25 Beds | E91: 12 | G91: 2317.5 | H91: 927 | I91: 0.4
A92: HC | C92: 366104 | D92: Staff Assignment Client-25 Bed | E92: 12 | G92: 2317.5 | H92: 927 | I92: 0.4
A93: HC | C93: 366200 | D93: Reports Manager - 25 Beds | E93: 12 | G93: 2317.5 | H93: 927 | I93: 0.4
A94: HC | B94: | | C94: 366201 | D94: Data Warehouse | E94: 12 | G94: 30000 | H94: 10000 | I94: 0.4
A95: HC | B95: | | C95: 366202 | D95: Business Intelligence | E95: 12 | G95: 15000 | H95: 5000 | I95: 0.357
A96: HC | C96: 366401 | D96: Interface-locate(rtls)-25 Beds | E96: 12 | G96: 2317.5 | H96: 927 | I96: 0.357
A97: HC | C97: 366402 | D97: Interface-hl7(adt)-25 Beds | E97: 12 | G97: 2317.5 | H97: 927 | I97: 0.4
A98: HC | C98: 366403 | D98: Interface-resp Sync-25 Bed | E98: 12 | G98: 2317.5 | H98: 927 | I98: 0.4
A99: HC | C99: 366404 | D99: All Touch Emr -25 Beds | E99: 12 | G99: 2317.5 | H99: 927 | I99: 0.4
A100: HC | C100: 366406 | D100: All Touch Bed Mgmt-25 Beds | E100: 12 | G100: 2317.5 | H100: 927 | I100: 0.4
A101: HC | C101: 366407 | D101: All Touch Iptv-25 Beds | E101: 12 | G101: 1187.5 | H101: 475 | I101: 0.4
A102: HC | C102: 366409 | D102: All Touch Bed Info-25 Beds | E102: 12 | G102: 1187.5 | H102: 475 | I102: 0.4
A103: HC | C103: 370000 | D103: Responder Enterprise Configurator | E103: 12 | G103: 0 | H103: 0 | I103: 0.4
A104: HC | C104: 370001 | D104: Responder Local Configurator | E104: 12 | G104: 0 | H104: 0 | I104: 0.4
A105: HC | C105: 350400A | D105: Staff Term Faceplt Bioseal Wht | E105: 60 | G105: 52.5 | H105: 21 | I105: 0.4
A106: HC | C106: 353000A | D106: Single Pat Stat - Aus (white) | E106: 60 | G106: 555 | H106: 222 | I106: 0.4
A107: HC | C107: 353001A | D107: Enhance Pat Stat - Aus (white) | E107: 60 | G107: 640 | H107: 256 | I107: 0.4
A108: HC | C108: 354001WP | D108: Pull-cord Station Water Proof | E108: 60 | G108: 172.5 | H108: 69 | I108: 0.4
A109: HC | C109: 354001WPA | D109: Pull-cord Statin Wp Australian | E109: 60 | G109: 170 | H109: 68 | I109: 0.4
A110: HC | C110: 354001WPP | D110: Pull-cord Statin Wp Portuguese | E110: 60 | G110: 170 | H110: 68 | I110: 0.4
A111: HC | C111: 354001WPS | D111: Pull-cord Station Wp Spanish | E111: 60 | G111: 172.5 | H111: 69 | I111: 0.4
A112: HC | C112: 354011A | D112: Code Station - Aus (white) | E112: 60 | G112: 187.5 | H112: 75 | I112: 0.4
A113: HC | C113: 354012A | D113: Staff Assist - Aus (white) | E113: 60 | G113: 187.5 | H113: 75 | I113: 0.4
A114: HC | C114: 354016A | D114: Bed Manage Stat - Aus (white) | E114: 60 | G114: 260 | H114: 104 | I114: 0.4
A115: HC | C115: 354018A | D115: 2 Jack Station - Aus (white) | E115: 60 | G115: 215 | H115: 86 | I115: 0.4
A116: HC | C116: 366405-1 | D116: All Touch Wire.wkflw #1-25 Bed | E116: 12 | G116: 1187.5 | H116: 475 | I116: 0.4
A117: HC | C117: 366405-2 | D117: All Touch Wire.wkflw #2-25 Bed | E117: 12 | G117: 1187.5 | H117: 475 | I117: 0.4
A118: HC | C118: 366408-1 | D118: All Touch Med Devices-25 Beds | E118: 12 | G118: 1187.5 | H118: 475 | I118: 0.4
A119: HC | C119: 366408-2 | D119: All Touch Med Devices-25 Beds | E119: 12 | G119: 1187.5 | H119: 475 | I119: 0.4
A120: HC | C120: AB4487 | D120: Wall Mtg Plate Standard | E120: 60 | G120: 67.5 | H120: 27 | I120: 0.4
A121: HC | C121: CC200 | D121: Call Cord W/ Clip - 10ft | E121: 24 | G121: 45 | H121: 18 | I121: 0.333
A122: HC | C122: CCDIN | D122: Call Cord - Din Connector | E122: 24 | G122: 55 | H122: 22 | I122: 0.333
A123: HC | C123: CCDIN3 | D123: Handheld Pendant W/2 Lights | E123: 24 | G123: 117.5 | H123: 47 | I123: 0.333
A124: HC | C124: CM300 | D124: Chassis Fault Monitor | E124: 18 | G124: 385 | H124: =ROUNDUP(G124*I124,0) -> 129 | I124: 0.333
A125: HC | B125: | | C125: CLA246 | D125: R5k 4light/6pt Audio Cl | E125: 60 | G125: 429 | H125: 143 | I125: 0.4
A126: HC | B126: | | C126: CLAR46 | D126: R5k 4 Pt Audio Relay Kit | E126: 60 | G126: 132 | H126: 44 | I126: 0.4
A127: HC | B127: | | C127: CLS103 | D127: R5k High Security Cl 3 Lamp | E127: 18 | G127: 276 | H127: 92 | I127: 0.4
A128: HC | C128: CP7385 | D128: Nurse Pushbutton 1/4" Jack | E128: 18 | G128: 50 | H128: 20 | I128: 0.4
A129: HC | C129: DP300 | D129: Dummy Plug For Din Jacks | E129: 18 | G129: 10 | H129: 4 | I129: 0.4
A130: HC | C130: DP7380 | D130: Dummy Plug For 1/4 | E130: 18 | G130: 10 | H130: 4 | I130: 0.333
A131: HC | C131: DTP4401 | D131: Din-to-plug Adapter | E131: 18 | G131: 40 | H131: 16 | I131: 0.333
A132: HC | B132: | | C132: HSS400 | D132: R5k High Security Audio Bed St | E132: 18 | G132: 774 | H132: 258 | I132: 0.333
A133: HC | B133: | | C133: HSS401 | D133: R5k High Security Staff St | E133: 18 | G133: 774 | H133: 258 | I133: 0.4
A134: HC | B134: | | C134: HSS433 | D134: R5k High Security Push Btn St | E134: 18 | G134: 774 | H134: 258 | I134: 0.4
A135: HC | C135: NC2828 | D135: Head-end Equipment Cabinet | E135: 60 | G135: 1680 | H135: 672 | I135: 0.4
A136: HC | C136: NC4JACK | D136: Auxiliary 4 Alarm Input St | E136: 18 | G136: 195 | H136: 78 | I136: 0.4
A137: HC | C137: NCBED | D137: Feature Bed Recep - 37 Pin | E137: 24 | G137: 145 | H137: 58 | I137: 0.4
A138: HC | C138: NCBED5 | D138: R5 Feature Bed Recep - 37 Pin | E138: 24 | G138: 157.5 | H138: 63 | I138: 0.4
A139: HC | C139: NCC37 | D139: Feat. Bed Cable -8ft | E139: 24 | G139: 157.5 | H139: 63 | I139: 0.333
A140: HC | C140: NCC37RA | D140: Feat. Bed Cable -right Angle | E140: 24 | G140: 157.5 | H140: 63 | I140: 0.333
A141: HC | B141: | | C141: NCPSDSL2 | D141: R5k Digital Pillow Spkr 2 Lts | E141: 24 | G141: 330 | H141: 110 | I141: 0.333
A142: HC | B142: | | C142: NCPSDSTV | D142: R5k Digital Pillow Speaker Tv | E142: 24 | G142: 330 | H142: 110 | I142: 0.333
A143: HC | B143: | | C143: NCPSKPL2 | D143: R5k Dir Acc Pillow Spkr 2lts | E143: 24 | G143: 345 | H143: 115 | I143: 0.4
A144: HC | B144: | | C144: NCPSKPTV | D144: R5k Direct Acc Pillow Spkr Tv | E144: 24 | G144: 345 | H144: 115 | I144: 0.4
A145: HC | C145: NCSAV | D145: Din Cord Saver | E145: 24 | G145: 42.5 | H145: 17 | I145: 0.333
A146: HC | C146: PM300 | D146: Power Fault Monitor | E146: 18 | G146: 342.5 | H146: 137 | I146: 0.333
A147: HC | B147: | | C147: R4K15V | D147: R5k Patient Station 1/4" & Btn | E147: 60 | G147: 123 | H147: 41 | I147: 0.333
A148: HC | B148: | | C148: R4K17V | D148: R5k Enhancd Sgle Pat Stn Wdin | E148: 60 | G148: 186 | H148: 62 | I148: 0.333
A149: HC | B149: | | C149: R4K2JACK | D149: R5k Dual 1/4" Jack Station | E149: 60 | G149: 135 | H149: 45 | I149: 0.333
A150: HC | B150: | | C150: R4KANNV2 | D150: R5k Annunciator Panel V2 | E150: 60 | G150: 882 | H150: 294 | I150: 0.333
A151: HC | B151: | | C151: R4KCAL | D151: R5k Call Assurance Light | E151: 60 | G151: 81 | H151: 27 | I151: 0.333
A152: HC | B152: | | C152: R4KCB13 | D152: R5k Code Blue Station | E152: 60 | G152: 102 | H152: 34 | I152: 0.333
A153: HC | B153: | | C153: R4KCONN6 | D153: R5k 6-pin Connectors - 100 | E153: 18 | G153: 486 | H153: 162 | I153: 0.333
A154: HC | B154: | | C154: R4KCRIMP | D154: R5k Crimping Tool | E154: 60 | G154: 60 | H154: 20 | I154: 0.333
A155: HC | B155: | | C155: R4KDLC2 | D155: R5k Dual Light Cntl Mod | E155: 60 | G155: 135 | H155: 45 | I155: 0.333
A156: HC | B156: | | C156: R4KDM22 | D156: R5k Desk Mount Kit Ann Pnl | E156: 60 | G156: 189 | H156: 63 | I156: 0.333
A157: HC | B157: | | C157: R4KFAM | D157: R5k Fire/auxiliary Module | E157: 60 | G157: 117 | H157: 39 | I157: 0.333
A158: HC | B158: | | C158: R4KFB1 | D158: R5k Feature Bed Interface | E158: 60 | G158: 132 | H158: 44 | I158: 0.357
A159: HC | C159: R4KHVK | D159: R4k 250v Kit For Nc2828 | E159: 60 | G159: 290 | H159: 116 | I159: 0.333
A160: HC | B160: | | C160: R4KKBS | D160: R5k K-bus Splitter | E160: 60 | G160: 42 | H160: 14 | I160: 0.333
A161: HC | B161: | | C161: R4KKBSP | D161: R5k K-bus Splitter - With Pwr | E161: 60 | G161: 48 | H161: 18 | I161: 0.333
A162: HC | B162: | | C162: R4KMQCV2 | D162: R5k Marquee Controller V2 | E162: 60 | G162: 507 | H162: 169 | I162: 0.333
A163: HC | B163: | | C163: R4KMST | D163: R5k Marquee Spkr St W/mute | E163: 60 | G163: 123 | H163: 41 | I163: 0.356
A164: HC | B164: | | C164: R4KPA25 | D164: R5k Paging Amplifier -25 Watt | E164: 60 | G164: 858 | H164: 286 | I164: 0.368
A165: HC | B165: | | C165: R4KPB12 | D165: R5k Single Button Station | E165: 60 | G165: 90 | H165: 30 | I165: 0.368
A166: HC | B166: | | C166: R4KPB23 | D166: R5k Staff Assist Code Station | E166: 60 | G166: 99 | H166: 35 | I166: 0.368
A167: HC | B167: | | C167: R4KPC11 | D167: R5k Pull Cord Station | E167: 60 | G167: 93 | H167: 34 | I167: 0.333
A168: HC | B168: | | C168: R4KRECP | D168: R5k Ann Panel Receptacle | E168: 60 | G168: 66 | H168: 22 | I168: 0.333
A169: HC | B169: | | C169: R4KSAR | D169: R5k Push For Help St Reg Stn | E169: 60 | G169: 102 | H169: 34 | I169: 0.357
A170: HC | B170: | | C170: R4KSLC1 | D170: R5k Single Light Cntl Mod | E170: 60 | G170: 81 | H170: 27 | I170: 0.333
A171: HC | B171: | | C171: R4KSPK | D171: R5k Speaker Station | E171: 60 | G171: 45 | H171: 16 | I171: 0.333
A172: HC | B172: | | C172: R4KSTAC | D172: R5k Test Adapter Cables | E172: 60 | G172: 129 | H172: 43 | I172: 0.333
A173: HC | B173: | | C173: R4KTVA | D173: R5k Tv Adaptor Kit Qty 10 | E173: 60 | G173: 42 | H173: 14 | I173: 0.333
A174: HC | B174: | | C174: R4KTVR1 | D174: R5k Digital Tv Isolation Mod | E174: 60 | G174: 54 | H174: 18 | I174: 0.333
A175: HC | B175: | | C175: R4KWM22 | D175: R5k Ann Panel Wall Mount Kit | E175: 60 | G175: 243 | H175: 81 | I175: 0.333
A176: HC | B176: | | C176: R5KCL506 | D176: R5k Corridor Light Visual 6pt | E176: 60 | G176: 198 | H176: 66 | I176: 0.333
A177: HC | B177: | | C177: R5KCL516 | D177: R5k Corridor Light 1 Audio 6pt | E177: 60 | G177: 237 | H177: 79 | I177: 0.333
A178: HC | B178: | | C178: R5KCL546 | D178: R5k Corridor Light 4 Audio 6pt | E178: 60 | G178: 270 | H178: 90 | I178: 0.333
A179: HC | B179: | | C179: R5KCONS | D179: R5k Voip Nurse Console | E179: 60 | G179: 1836 | H179: 612 | I179: 0.333
A180: HC | B180: | | C180: R5KDC016 | D180: R5k Domeless 16pt Visual | E180: 60 | G180: 369 | H180: 123 | I180: 0.35
A181: HC | B181: | | C181: R5KDC06 | D181: R5k Domeless 6pt Visual | E181: 60 | G181: 264 | H181: 97 | I181: 0.333
A182: HC | B182: | | C182: R5KDC16D | D182: R5k Domeless Duty 1 Audio 6pt | E182: 60 | G182: 330 | H182: 116 | I182: 0.333
A183: HC | B183: | | C183: R5KDC46 | D183: R5k Domeless 4 Audio 6pt | E183: 60 | G183: 315 | H183: 105 | I183: 0.333
A184: HC | B184: | | C184: R5KDCRC4 | D184: R5k Relay Output Controler | E184: 60 | G184: 120 | H184: 40 | I184: 0.333
A185: HC | B185: | | C185: R5KDCRCS4 | D185: R5k Ss Relay Output Controller | E185: 60 | G185: 144 | H185: 48 | I185: 0.343
A186: HC | B186: | | C186: R5KDEMOACT | D186: R5k Demo Acute | E186: 60 | G186: 18000 | H186: 6000 | I186: 0.333
A187: HC | B187: | | C187: R5KL2KA | D187: R5k L2k Adapter | E187: 60 | G187: 543 | H187: 186 | I187: 0.333
A188: HC | B188: | | C188: R5KLAPTOP | D188: R5k Demo Unit Laptop | E188: 12 | G188: 12000 | H188: 4000 | I188: 0.357
A189: HC | B189: | | C189: R5KM8PRT | D189: R5k 8-port Ethernet Switch | E189: 60 | G189: 1113 | H189: 371 | I189: 0.333
A190: HC | B190: | | C190: R5KMADT | D190: R5k Adt Interface | E190: 12 | G190: 3750 | H190: 1338 | I190: 0.333
A191: HC | B191: | | C191: R5KMPR15 | D191: R5k 15v Pwr Sply W Bat Backup | E191: 60 | G191: 933 | H191: 311 | I191: 0.357
A192: HC | B192: | | C192: R5KMPR36 | D192: R5k 36v Pwr Sply W Bat Backup | E192: 60 | G192: 900 | H192: 300 | I192: 0.333
A193: HC | B193: | | C193: R5KMRPT | D193: R5k Application Module | E193: 12 | G193: 9000 | H193: 3210 | I193: 0.357
A194: HC | B194: | | C194: R5KMSC | D194: R5k Main System Controller | E194: 60 | G194: 1803 | H194: 601 | I194: 0.333
A195: HC | B195: | | C195: R5KMSIP | D195: R5k Telephony Interface | E195: 12 | G195: 5175 | H195: 1846 | I195: 0.333
A196: HC | B196: | | C196: R5KMTRM | D196: R5k Termination Board | E196: 60 | G196: 183 | H196: 61 | I196: 0.333
A197: HC | B197: | | C197: R5KPADP | D197: R5k Adapter Plates (10) | E197: 60 | G197: 111 | H197: 37 | I197: 0.333
A198: HC | B198: | | C198: R5KPB4 | D198: R5k 4 Button Workflow Station | E198: 60 | G198: 123 | H198: 41 | I198: 0.333
A199: HC | B199: | | C199: R5KPB4CNF | D199: R5k 4 Button Status Station | E199: 60 | G199: 123 | H199: 38 | I199: 0.333
A200: HC | B200: | | C200: R5KPC11WP | D200: R5k Waterproof Pullcord | E200: 60 | G200: 102 | H200: 34 | I200: 0.333
... 18 more rows

Sheet DropDowns
A1: R5KPD2EA - Enhnaced Dual Patient Station | B1: R5KPD2EA
A2: R5KPS1EA - Enhanced Single Station | B2: R5KPS1EA | D2: Yes
A3: R5KPD2A - Dual Patient Station | B3: R5KPD2A | D3: No | E3: =E2+10 -> 10
A4: R5KPS1A - Single Audio Patient Station | B4: R5KPS1A | E4: =E3+10 -> 20
A5: R5KPS1V - Single Patient Visual Station | B5: R5KPS1V | E5: =E4+10 -> 30
A6: R5KPS1LCA - Audio Single Patient Station with Lighting Control | B6: R5KPS1LCA | E6: 40
A7: R5KSSTF - Staff Station | B7: R5KSSTF | E7: 50
A8: R5KSDTY - Duty Station | B8: R5KSDTY | E8: 60
A9: R4K15V - SLIM 1/4" Jack / Button St | B9: R4K15V
A10: R4K17V - SLIM Enh Single Call St | B10: R4K17V
A11: HSS400 - High Security Audio Bed Station | B11: HSS400
A12: HSS401 - High Security Staff Station | B12: HSS401
A13: HSS433 - High Security Push Button Station | B13: HSS433
A14: R5KPB4 - 4-button Station | B14: R5KPB4
A15: R5KPB4CNF - 4-button CNF Station | B15: R5KPB4CNF
A16: R4K2JACK - SLIM Dual 1/4" Jack St | B16: R4K2JACK
A17: R4KCB13 - SLIM Code Button St | B17: R4KCB13
A18: R4KPB12 - SLIM Single Button St | B18: R4KPB12
A19: R4KPB23 - SLIM Dual Button w/ Code St | B19: R4KPB23
A20: R4KPC11 - SLIM Pull Cord St | B20: R4KPC11
A21: R5KCANCEL - Cancel Station | B21: R5KCANCEL
A22: R5KPC11WP - Waterproof Pullcord Station | B22: R5KPC11WP
A23: R5KPC11WPS - Waterproof Pullcord Station - Spanish | B23: R5KPC11WPS
A24: R5KPC11WPF - Waterproof Pullcord Station - French | B24: R5KPC11WPF
A25: R5KPC11WPP - Waterproof Pullcord Station - Portuguese | B25: R5KPC11WPP
A26: R4KSAR - SLIM Dual Button St | B26: R4KSAR
A27: R4KSPK - SLIM Speaker Module | B27: R4KSPK
A28: NC4JACK - 1/4" Jack Auxiliary Input Station | B28: NC4JACK
A29: R4KFB1 - Feature Bed Interface | B29: R4KFB1
A30: R5KCL506 - 5-Bulb, Visual Corridor Light | B30: R5KCL506
A31: R5KCL516 - 5-Bulb, 1-Point Audio Corridor Light | B31: R5KCL516
A32: R5KCL546 - 5-Bulb, 4-Point Audio Corridor Light | B32: R5KCL546
A33: R5KDC06 - 6-Point Visual Domeless Controller | B33: R5KDC06
A34: R5KDC016 - 16-Point Visual Domeless Controller | B34: R5KDC016 | H34: Number of Bed Stations | I34: =SUM('R5K Details'!J33:J39,'R5K Details'!J48:J61) -> 41 | J34: total number of MSC based on CL and consoles
A35: R5KDC46 - 6-Point, 4-Point Audio Domeless Controller | B35: R5KDC46 | H35: Number of MSCs Needed (95% loading) | I35: =IF(I43=0,0,IF(I43<=87,1,IF(I43<=174,2,IF(I43<=261,3,IF(I43<=348,4,IF(I43<=435,5,IF(I43<=522,6,IF(I43<=609,7,IF(I43<=696,8,IF(I43<=783,9,IF(I43<=870,10,IF(I43<=957,11,IF(I43<=1044,12,0))))))))))))) -> 1 | J35: =IF(I35>=I49,I35,I49) -> 1
A36: R5KDC16D - 6-Point, 1 Point Audio Duty Domeless Controller | B36: R5KDC16D | H36: Number of Visual and Audio CL/DC Selected | I36: =SUM('R5K Details'!J89:J97) -> 17
A37: CLA246 - 4Bulb/1-Point Audio R4K Corridor Light | B37: CLA246 | H37: Number of Audio Stations | I37: =SUM('R5K Details'!J33:J36,'R5K Details'!J38:J39,'R5K Details'!J60:J61,'R5K Details'!J72) -> 41
A38: CLAR46 - 4 Audio Point Relay Module | B38: CLAR46 | H38: Number of Audio CL/DC Needed | I38: =I37 -> 41
H39: Number of Audio CL/DC Selected | I39: =SUM('R5K Details'!J90:J92,'R5K Details'!J96) -> 13
H40: Number of Visual CL/DC Needed | I40: =I36-I37 -> -24
H41: Number of Visual CL/DC Selected | I41: =SUM('R5K Details'!J89,'R5K Details'!J94:J95) -> 4
H42: Number Duty DC Selected | I42: ='R5K Details'!J97 -> 0
H43: Total Number of CLs/DCs Selected | I43: =SUM(I39,I41,I44,I42) -> 17
H44: Number of Marquee controllers | I44: ='R5K Details'!J23 -> 0
H45: calculations for L2 needed | I45: =IF(I43=0,0,IF(I43<=24,1,IF(I43<=48,2,IF(I43<=72,3,IF(I43<=96,4,IF(I43<=120,5,IF(I43<=164,6,IF(I43<=188,7,IF(I43<=212,8,IF(I43<=236,9,IF(I43<=260,10,IF(I43<=284,11,IF(I43<=308,12,IF(I43<=332,13,IF(I43<=356,14,IF(I43<=380,15,IF(I43<=404,16,IF(I43<=428,17,IF(I43<=452,18,IF(I43<=476,12,0)))))))))))))))))))) -> 1
H46: calculations for L2 needed | I46: =IF(I43<=476,0,IF(I43<=500,1,IF(I43<=524,2,IF(I43<=548,3,IF(I43<=572,4,IF(I43<=596,5,IF(I43<=620,6,IF(I43<=644,7,IF(I43<=668,8,IF(I43<=692,9,IF(I43<=716,10,IF(I43<=740,11,IF(I43<=764,12,IF(I43<=788,13,IF(I43<=812,14,IF(I43<=836,15,IF(I43<=860,16,IF(I43<=884,17,IF(I43<=908,18,IF(I43<=932,19,IF(I43<=956,20,IF(I43<=980,21,IF(I43<=1004,22,0))))))))))))))))))))))) -> 0
H47: Number of L2 Needed | I47: =I45+I46 -> 1
H48: Number of Consoles | I48: ='R5K Details'!J26 -> 1
H49: Number of MSCs Needed Consoles | I49: =IF(I48=0,0,IF(I48<=16,1,IF(I48<=32,2,IF(I48<=48,3,IF(I48<=64,4,IF(I48<=80,5,IF(I48<=96,6,IF(I48<=112,7,IF(I48<=128,8,IF(I48<=144,9,IF(I48<=160,10,IF(I48<=176,11,IF(I48<=192,12,0))))))))))))) -> 1
H50: Number of ANN Panels
A75: R5KDCRC4 - Relay Output Control | B75: R5KDCRC4
A76: R5KDCRCS4 - Solid State Relay Output Control | B76: R5KDCRCS4
A77: NCPSDSL2 - Digital Pillow Speaker, 2 Lts | B77: NCPSDSL2
A78: NCPSDSTV - Digital Pillow Speaker, TV | B78: NCPSDSTV
A79: NCPSKPL2 - Direct Access Digital PS, 2 Lt | B79: NCPSKPL2
A80: NCPSKPTV - Direct Access Digital PS, TV | B80: NCPSKPTV
A81: NCSAV - DIN Cord Saver | B81: NCSAV
A82: CCDIN - Call Cord - Single w/ Clip (10 ft.) | B82: CCDIN
A83: CC200 - Call Cord - 1/4" Jack Call Cord w/ Clip (10ft.) | B83: CC200
A84: 350008 - Clear Station Cover (SLIM 1 & 2 Buttons Station) | B84: 350008
A85: R4KFB1 - Feature Bed Interface | B85: R4KFB1
A86: R4KSLC1 - Single Light Control Module | B86: R4KSLC1
A87: R4KDLC2 - Dual Light Control Module | B87: R4KDLC2
A88: R4KTVA - TV Adapter pigtail kit (Set of 10) | B88: R4KTVA
A89: R4KTVR1 - Digital TV Isolation Module | B89: R4KTVR1
A90: R4KCAL - Call Assurance Light | B90: R4KCAL
A91: R4KFAM Fire/Auxiliary Module | B91: R4KFAM
